Cogmind - Beta 13 @@@ ROGUE MODE // 2024.06.08 @ 07:26:36 // Winter2019/RPGLIKE Player: Haldron Result: Destroyed by G-73 Enforcer with Phase Gun Performance ------------- Evolutions (9) 4500 Regions Visited (36) 7200 Robots Destroyed (616) 3080 Value Destroyed (26448) 26448 Prototype IDs (60) 1200 Alien Tech Used (12) 2400 Bonus (36084) 36084 TOTAL SCORE: 80912 Bonus ------- Triggered High Security 500 Triggered Max Security 4000 High Alert Combat Kills 6491 Follower Combat Kills 3646 Network Hubs Disabled 600 Met Data Miner 300 Met Zhirov 300 Built Enhanced Grunts 300 A7 Reached Mainframe 300 Met R17 at Cetus 500 Used Core Reset Matrix 3000 Met R17 at Research 2000 Scanned by Researcher 500 Integrated Exoskeleton 5000 Destroyed MAIN.C Guards 500 Met MAIN.C 5000 Destroyed MAIN.C Shell 5000 Friendly Fire -1853 Cogmind --------- Core Integrity 0/2250 Matter 520/525 Energy 548/570 System Corruption 1% Temperature Cool (0) Movement Walking (30) Location -1/Command Parts ------- > --- POWER (2) -------- Cooled Antimatter Reactor Light Quantum Reactor > --- PROPULSION (3) --- Sigix Exoskeleton > --- UTILITY (4) ------ Advanced Weapon Cycler Advanced Shield Generator Antimissile System > --- WEAPON (3) ------- Sigix Sheargun Sigix Sheargun (fused) Sigix Sheargun > --- INVENTORY (7) ---- Experimental Energy Well (600) Improved System Restoration Module Containment Facilitator Improved Plasma Cutter Plasma Sword Peak State ------------ > --- POWER ------------ Cooled Antimatter Reactor Quantum Reactor > --- PROPULSION ------- Sigix Exoskeleton > --- UTILITY ---------- Experimental Cooling System Experimental Coolant Injector Advanced Weapon Cycler Antimissile System > --- WEAPON ----------- Sigix Sheargun Sigix Sheargun Sigix Sheargun > --- INVENTORY -------- Protomatter Protomatter Improved Phase Shifter Antimissile System Improved System Restoration Module Improved Plasma Cutter Plasma Sword [Rating: 249] Favorites ----------- Power F-cell Engine Engine F-cell Engine Power Core Micro Fission Core Reactor Light Antimatter Reactor Propulsion Biomechanical Wings Treads Light Treads Leg Sigix Exoskeleton Hover Unit Airjet Flight Unit Biomechanical Wings Utility 0b10 Decoder Chip [Looter] Device Improved Shield Generator Storage Experimental Energy Well Processor 0b10 Decoder Chip [Looter] Hackware Hacking Suite Protection Light Regenerative Plating Artifact Core Physics Calibrator Weapon Power Sword Energy Gun Sigix Sheargun Energy Cannon Cooled Nova Cannon Ballistic Gun Light Assault Rifle Launcher Heavy Missile Launcher Special Weapon Improved Plasma Cutter Impact Weapon Heavy Mace Slashing Weapon Power Sword Piercing Weapon Spear Special Melee Weapon Improved Datajack Build | -11 -10 -10 -9 -9 -9 -8 -8 -7 -7 -7 -7 -6 -6 -6 -6 -6 -5 -5 -5 -5 -5 -5 -4 -4 -4 -4 -4 -4 -3 -3 -3 -3 -2 -2 -1 -1 ------- Run | Yrd Mat Min Mat Min Exi Min Mat Fac Low Low Zio Pro Fac Low Low Dat Pro Fac Ext Cet Arc Hub Fac Was Fac Upp Upp Zhi Pro Res Qua Sec Res Tes Acc Com Slots Evolved 22 | 4 . 1 4 . . . 2 2 . . . . 1 . . . 1 1 . . . . 2 . . . . . . 1 . . 2 . 1 . Power 2 | . . . . . . . . . . . . . . . . . . . . . . . 1 . . . . . . . . . 1 . . . Propulsion 6 | 1 . . 2 . . . 1 1 . . . . . . . . . . . . . . 1 . . . . . . . . . . . . . Utility 9 | 1 . 1 1 . . . 1 1 . . . . 1 . . . . 1 . . . . . . . . . . . 1 . . . . 1 . Weapon 5 | 2 . . 1 . . . . . . . . . . . . . 1 . . . . . . . . . . . . . . . 1 . . . Parts Attached 672 | 8 4 1 33 5 . 5 6 60 16 14 11 16 82 7 17 1 6 44 29 6 . 4 57 2 29 10 14 6 10 14 12 35 26 30 21 31 Power 30 | 1 . . 2 . . . . 6 . . 1 . 2 . . . . . . . . . 3 . 1 . . . . 1 . 1 3 7 . 2 Engine 10 | 1 . . 2 . . . . 4 . . . . 1 . . . . . . . . . . . . . . . . . . 1 1 . . . Core 7 | . . . . . . . . 2 . . . . . . . . . . . . . . 3 . 1 . . . . 1 . . . . . . Reactor 13 | . . . . . . . . . . . 1 . 1 . . . . . . . . . . . . . . . . . . . 2 7 . 2 Propulsion 37 | 2 1 . 8 . . . 1 5 . . . . 10 . . . . 3 1 . . 1 3 . . . . 2 . . . . . . . . Treads 3 | 2 1 . . . . . . . . . . . . . . . . . . . . . . . . . . . . . . . . . . . Leg . | . . . . . . . . . . . . . . . . . . . . . . . . . . . . . . . . . . . . . Wheel . | . . . . . . . . . . . . . . . . . . . . . . . . . . . . . . . . . . . . . Hover 4 | . . . 4 . . . . . . . . . . . . . . . . . . . . . . . . . . . . . . . . . Flight 30 | . . . 4 . . . 1 5 . . . . 10 . . . . 3 1 . . 1 3 . . . . 2 . . . . . . . . Utility 404 | 2 1 1 6 3 . 1 3 30 11 8 8 10 31 1 13 1 2 29 22 4 . 1 40 . 28 5 12 3 10 9 12 20 22 17 15 23 Device 316 | 2 1 1 4 . . 1 1 16 10 7 7 10 22 1 11 1 2 22 17 2 . 1 35 . 25 5 12 3 10 6 12 16 13 10 12 18 Storage 1 | . . . . . . . . . . . . . . . . . . . . . . . . . . . . . . . . . . . . 1 Processor 19 | . . . . 1 . . . 1 . . 1 . 1 . . . . . . . . . 1 . 1 . . . . 1 . . 6 3 2 1 Hackware 22 | . . . . . . . 1 7 . 1 . . 3 . . . . 6 . . . . 2 . 2 . . . . . . . . . . . Protection 45 | . . . 2 2 . . 1 6 1 . . . 5 . 2 . . 1 5 2 . . 2 . . . . . . 2 . 3 3 4 1 3 Artifact 1 | . . . . . . . . . . . . . . . . . . . . . . . . . . . . . . . . 1 . . . . Weapon 201 | 3 2 . 17 2 . 4 2 19 5 6 2 6 39 6 4 . 4 12 6 2 . 2 11 2 . 5 2 1 . 4 . 14 1 6 6 6 Energy Gun 17 | 2 . . 5 . . . . . . . . . . . . . . . . . . . . . . . . . . . . 1 1 2 3 3 Energy Cannon 4 | . . . . . . . . . . . . . . . . . . . . . . . . . . . . . . . . 1 . 3 . . Ballistic Gun 10 | 1 2 . 3 . . . . . . . . . 4 . . . . . . . . . . . . . . . . . . . . . . . Ballistic Cannon . | . . . . . . . . . . . . . . . . . . . . . . . . . . . . . . . . . . . . . Launcher 41 | . . . 1 1 . 2 1 6 2 3 . 3 8 1 1 . 1 2 3 . . . 1 1 . 2 1 . . 1 . . . . . . Special Weapon 24 | . . . . . . . . . . . 1 . 7 . . . 1 3 . 1 . 1 3 . . . . . . . . 3 . . 1 3 Impact Weapon 13 | . . . 8 1 . 2 1 1 . . . . . . . . . . . . . . . . . . . . . . . . . . . . Slashing Weapon 66 | . . . . . . . . 5 3 3 1 3 17 4 2 . 1 6 1 . . . 3 . . 2 . 1 . 2 . 9 . 1 2 . Piercing Weapon 2 | . . . . . . . . 2 . . . . . . . . . . . . . . . . . . . . . . . . . . . . Special Melee Weapon 24 | . . . . . . . . 5 . . . . 3 1 1 . 1 1 2 1 . 1 4 1 . 1 1 . . 1 . . . . . . Unidentified Prototypes 21 | . . . 1 . . . . 1 . . 2 . 1 . . . . . . 1 . . . . . . . 3 . . 1 . 2 6 . 3 Parts Lost 1 | . . . . . . . . . . . . . . . . . . . . . . . . . . . . . . . . . . . . 1 Power . | . . . . . . . . . . . . . . . . . . . . . . . . . . . . . . . . . . . . . Propulsion . | . . . . . . . . . . . . . . . . . . . . . . . . . . . . . . . . . . . . . Utility 1 | . . . . . . . . . . . . . . . . . . . . . . . . . . . . . . . . . . . . 1 Weapon . | . . . . . . . . . . . . . . . . . . . . . . . . . . . . . . . . . . . . . Highest Loss Streak 1 | . . . . . . . . . . . . . . . . . . . . . . . . . . . . . . . . . . . . 1 To Critical Strikes . | . . . . . . . . . . . . . . . . . . . . . . . . . . . . . . . . . . . . . Average Slot Usage (%) 97 | . 99 100 99 100 100 100 97 99 99 100 100 100 97 95 99 100 100 99 99 100 100 100 99 100 99 100 100 99 100 100 99 94 73 77 79 82 Engine 4 | . 12 11 9 7 7 7 6 5 . . . . 1 5 5 5 5 5 5 5 5 5 4 4 4 4 4 4 4 4 4 5 10 . . . Core 1 | . . . . . . . . . 5 5 2 . . . . . . . . . . . 3 4 4 4 4 4 4 4 4 3 . . . . Reactor 1 | . . . . . . . . . . . 2 5 3 . . . . . . . . . . . . . . . . . . . . 17 16 15 Treads 2 | . 24 22 15 . . . . . . . . . . . . . . . . . . . . . . . . . . . . . . . . . Flight 25 | . . . 2 30 30 30 31 31 35 35 35 35 33 33 33 33 32 30 29 30 30 30 30 31 31 31 31 30 31 30 30 23 . . . . Device 18 | . 25 31 28 13 7 10 13 12 11 11 11 11 14 16 16 16 15 14 25 25 25 25 18 18 17 18 18 18 18 22 25 24 10 11 14 26 Processor 9 | . . . . 1 7 7 6 5 11 11 11 17 16 16 16 16 15 10 10 10 10 10 9 13 13 13 13 13 13 11 8 6 5 9 6 . Hackware 2 | . . . . . . . 4 9 5 5 4 . 4 . . . . 10 . . . . 2 . . . . . . . . . . . . . Protection 4 | . . . 8 15 15 11 6 5 4 5 5 5 2 5 4 5 5 . 4 5 5 5 4 4 4 4 4 4 4 4 4 4 9 3 7 3 Energy Gun 2 | . 3 . 7 . . . . . . . . . . . . . . . . . . . . . . . . . . . . 4 13 12 17 24 Ballistic Gun 3 | . 33 33 14 . . . . . . . . . . . . . . . . . . . . . . . . . . . . . . . . . Impact Weapon 1 | . . . 6 29 30 27 26 4 . . . . . . . . . . . . . . . . . . . . . . . . . . . . Slashing Weapon 15 | . . . . . . . . 11 20 22 23 22 17 15 21 22 21 20 20 20 20 20 18 18 18 18 18 20 22 20 21 14 10 8 6 . Special Melee Weapon 1 | . . . . . . . . 4 . . . . . 1 . . 2 4 4 4 5 3 3 2 4 3 3 2 . . . . . . . . Naked Turns . | . . . . . . . . . . . . . . . . . . . . . . . . . . . . . . . . . . . . . Heaviest Build 83 | 11 11 12 31 30 28 29 29 36 35 35 37 40 40 42 45 44 44 40 53 47 46 46 49 51 52 52 52 49 54 51 56 59 64 82 81 83 Greatest Support 94 | 40 40 40 40 30 30 30 35 40 40 40 40 40 46 46 46 46 46 48 48 48 48 48 54 52 52 52 52 57 57 57 57 94 85 85 85 85 Greatest Overweight (x) 3 | . . . 3 . . . . . 2 . . 2 . . . . . . 1 . . . . . . . . 1 . . . 1 . . . . Average Overweight (x) . | . . . . . . . . . . . . . . . . . . . . . . . . . . . . . . . . . . . . . Largest Inventory Capacity 7 | 1 1 2 4 4 4 4 4 5 6 6 6 6 7 7 7 7 7 7 7 7 7 7 7 7 7 7 7 7 7 7 7 7 7 7 7 7 Average Capacity 6 | 1 1 1 3 4 4 4 4 4 5 6 6 6 6 7 7 7 7 7 7 7 7 7 7 7 7 7 7 7 7 7 7 7 7 7 7 7 Most Carried 7 | . 1 2 4 4 4 4 4 5 6 6 6 6 7 7 7 7 7 7 7 7 7 7 7 7 7 7 7 7 7 7 7 7 7 7 7 7 Average Carried 5 | . . 1 3 4 4 4 4 4 4 5 5 5 6 6 7 7 6 6 6 6 7 7 6 7 6 6 6 6 7 6 6 6 6 6 6 6 Final Capacity 7 | 1 1 2 4 4 4 4 4 5 6 6 6 6 7 7 7 7 7 7 7 7 7 7 7 7 7 7 7 7 7 7 7 7 7 7 7 7 Final Carried 7 | . 1 2 4 4 4 4 4 5 6 6 6 6 7 7 7 7 7 7 7 7 7 7 7 7 7 7 7 7 7 7 7 7 6 7 7 5 Class Distribution -------------------- 26% | Hacker-Scout 20% | Commander-Scout 9% | Commander-Ninja 8% | Alien-Sigix 8% | Machinist-Ninja 8% | Hacker-Ninja 7% | Gunner Dominant Class ---------------- Gunner | -10/Materials Gunner | -10/Mines Scavenger-Gunner | -9/Materials Sprinter | -9/Mines Sprinter | -9/Exiles Sprinter | -8/Mines Sprinter | -8/Materials Hacker-Scout | -7/Factory Hacker-Scout | -7/Lower Caves Commander-Scout | -7/Lower Caves Commander-Scout | -7/Zion Commander-Scout | -6/Proximity Caves Hacker-Scout | -6/Factory Hacker-Scout | -6/Lower Caves Commander-Scout | -6/Lower Caves Commander-Scout | -6/Data Miner Commander-Scout | -5/Proximity Caves Hacker-Ninja | -5/Factory Commander-Ninja | -5/Extension Commander-Scout | -5/Cetus Commander-Scout | -5/Archives Commander-Ninja | -5/Hub_04(d) Hacker-Ninja | -4/Factory Hacker-Scout | -4/Waste Hacker-Scout | -4/Factory Hacker-Scout | -4/Upper Caves Hacker-Scout | -4/Upper Caves Hacker-Scout | -4/Zhirov Machinist-Scout | -3/Proximity Caves Machinist-Ninja | -3/Research Machinist-Ninja | -3/Quarantine Machinist-Ninja | -3/Section 7 Alien-Sigix | -2/Research Alien-Sigix | -2/Testing Alien-Sigix | -1/Access Alien-Sigix | -1/Command Resources | -11 -10 -10 -9 -9 -9 -8 -8 -7 -7 -7 -7 -6 -6 -6 -6 -6 -5 -5 -5 -5 -5 -5 -4 -4 -4 -4 -4 -4 -3 -3 -3 -3 -2 -2 -1 -1 ----------- Run | Yrd Mat Min Mat Min Exi Min Mat Fac Low Low Zio Pro Fac Low Low Dat Pro Fac Ext Cet Arc Hub Fac Was Fac Upp Upp Zhi Pro Res Qua Sec Res Tes Acc Com Matter Collected 8595 | 289 199 80 583 72 . 149 99 950 282 210 110 440 1093 58 256 . 122 515 375 60 . 53 554 60 280 200 160 . 170 110 160 347 130 160 110 159 Remotely 2047 | 71 199 80 583 62 . 149 89 254 150 . 30 380 . . . . . . . . . . . . . . . . . . . . . . . . Salvage Created 25015 | 115 362 68 781 52 . 164 360 2698 578 599 123 759 2356 40 404 . 468 1317 1199 134 141 535 2487 . 1118 219 194 . 435 945 918 1492 95 40 618 3201 Parts 1345 | 5 24 14 59 . . 18 9 127 33 36 6 29 157 5 10 . 5 79 67 11 3 27 152 . 89 1 23 . 28 47 34 76 14 4 26 127 Haulers Intercepted 25 | . . . 4 . . . . 7 . . . . 4 . . . . 1 . . . . 1 . . . . . . 3 2 3 . . . . Recyclers Shooed 5 | . . . . . . . . 2 . . . . . . . . . . . . . . . . . . . . . . . . . . 1 2 Parts Field Recycled . | . . . . . . . . . . . . . . . . . . . . . . . . . . . . . . . . . . . . . Retrieved Matter . | . . . . . . . . . . . . . . . . . . . . . . . . . . . . . . . . . . . . . Parts Self-Destructed 173 | . . . . . . . . . 30 30 4 32 . 4 7 . 5 . . . . . . . . 1 23 . 37 . . . . . . . Prevented 2 | . . . . . . . . . 2 . . . . . . . . . . . . . . . . . . . . . . . . . . . Kills | -11 -10 -10 -9 -9 -9 -8 -8 -7 -7 -7 -7 -6 -6 -6 -6 -6 -5 -5 -5 -5 -5 -5 -4 -4 -4 -4 -4 -4 -3 -3 -3 -3 -2 -2 -1 -1 ------- Run | Yrd Mat Min Mat Min Exi Min Mat Fac Low Low Zio Pro Fac Low Low Dat Pro Fac Ext Cet Arc Hub Fac Was Fac Upp Upp Zhi Pro Res Qua Sec Res Tes Acc Com Combat Hostiles Destroyed 429 | . 10 5 21 3 . 9 10 38 19 17 2 23 42 4 8 . 4 19 16 2 1 7 44 . 28 5 8 . 7 7 8 20 2 . 3 37 Melee 266 | . . . 5 1 . . 1 22 12 9 2 8 31 1 5 . 4 19 16 2 1 7 38 . 28 4 8 . 7 7 8 20 . . . . Guns 65 | . 10 5 9 . . . . . . . . . . . . . . . . . . . . . . . . . . . . . 2 . 2 37 AOE 84 | . . . 4 . . 8 4 14 7 7 . 15 11 3 3 . . . . . . . 6 . . 1 . . . . . . . . 1 . Classes Destroyed 27 | 2 3 . 6 . . 1 1 1 2 3 . 2 2 . . . . . . . . . 1 . . . . . . . 1 1 . . . 1 Worker 19 | . . . 3 . . 1 . 6 . . . . 2 . . . . 1 2 . . . . . 1 . . . . . . . . 1 2 . Builder 26 | . . . 5 . . 1 . 7 . . . . 8 . . . . 1 1 . . . 1 . . . . . . 1 . . . . 1 . Tunneler 5 | 1 . . . . . . . 1 . . . . . . . . . . . . . . 2 . . . . . . 1 . . . . . . Hauler 25 | . . . 4 . . . . 7 . . . . 4 . . . . 1 . . . . 1 . . . . . . 3 2 3 . . . . Recycler 27 | 1 2 . . . . 1 2 7 . . . . 2 . . . . 2 2 . . . 1 . . . . . . . 2 . . . 2 3 Minesweeper 7 | . . . . . . . . . 2 2 . . . . . . 1 . . . . . . . . . 1 . 1 . . . . . . . Mechanic 4 | . . . 1 . . . . . . . . 1 . . . . . . . . . . 1 . . . . . . . . . . . . 1 Operator 15 | . . . . . . . 1 1 . . . . 2 . . . . 2 2 . . . 2 . . . . . . . . 2 . 1 1 1 Drone 1 | . . . . . . . . . . . . 1 . . . . . . . . . . . . . . . . . . . . . . . . Watcher 57 | . 2 . 4 . . . . 8 . . . . 7 . . . . 6 3 1 . 2 10 . 3 . . . . 4 1 3 . . 1 2 Swarmer 107 | . 8 3 6 . . 8 6 9 5 8 . . 5 4 1 . . 5 . . . . 13 . 11 . 5 . . 3 . 7 . . . . Grunt 147 | . 2 2 10 1 . . 2 18 7 7 . 10 16 . 1 . 3 8 4 . . . 13 . 7 3 1 . 5 3 2 2 . . . 20 Brawler 13 | . . . 1 . . . . 1 . . . 5 1 . 1 . . . . . . . . . . 1 . . . . . . . . . 3 Duelist 14 | . . . . . . . . . 2 . . 2 2 . 1 . 1 . 1 . . . 1 . . 1 . . . . . . . . . 3 Protector 2 | . . . . . . . . . . . . . 1 . . . . . . . . . . . . . . . . . . . . . . 1 Researcher 1 | . . . . . . . . . . . . . . . . . . . . . . . . . . . . . . . 1 . . . . . Sentry 56 | . . . 4 1 . . 1 8 1 . . 2 7 . 1 . . 3 10 . 1 2 6 . 3 . 1 . 1 . . 2 . . 1 1 Demolisher 1 | . . . . . . . . . . . . . 1 . . . . . . . . . . . . . . . . . . . . . . . Specialist 2 | . . . . . . . . . . . . 1 1 . . . . . . . . . . . . . . . . . . . . . . . Hunter 30 | . . . . . . 1 1 1 1 . 2 1 5 . . . . 1 . . . . 2 . 2 . . . . 1 4 2 . . 1 5 Programmer 34 | . . . . . . . . 1 . . . 1 3 . 1 . . 2 . . . 4 7 . 5 . . . 1 . 2 4 2 . 1 . Heavy 1 | . . . . . . . . . . . . . . . . . . . . . . . 1 . . . . . . . . . . . . . Behemoth 5 | . . . . . . . . . . 1 . . . . 1 . . . 1 . . . 1 . . . 1 . . . . . . . . . Cetus Guard 2 | . . . . . . . . . . . . . . . . . . . . 2 . . . . . . . . . . . . . . . . S7 Guard 1 | . . . . . . . . . . . . . . . . . . . . . . . . . . . . . . . . 1 . . . . M Guard 2 | . . . . . . . . . . . . . . . . . . . . . . . . . . . . . . . . . . . . 2 Lightning 1 | . . . . . . . . . . . . . . . . . . . . . . 1 . . . . . . . . . . . . . . Combat Programmer 1 | . . . . . . . . . . . . . . . . . . . . . . . . . . . . . . . . . . . . 1 Investigator 1 | . . . . . . . . . . . . . . . . . . . . . . . . . . . . . . . . . . . . 1 Executioner 2 | . . . . . . . . . . . . . . . . . . . . . . . . . . . . . . . . 2 . . . . Decomposer 2 | . . . . . . . . . . 1 . . . . . . . . . . . . . . . . 1 . . . . . . . . . Packrat 2 | . . . . . . . . . . . . . . . . . 2 . . . . . . . . . . . . . . . . . . . Samaritan 1 | . . . . . . . . . . 1 . . . . . . . . . . . . . . . . . . . . . . . . . . Assembled 7 | . . . . . . . . . . . . . . . . . . . . . . . . . . . . . . . . . . . . 7 Thug 1 | . . . . . . . . . 1 . . . . . . . . . . . . . . . . . . . . . . . . . . . Butcher 2 | . . . . . . . . . 2 . . . . . . . . . . . . . . . . . . . . . . . . . . . Mutant 2 | . . . . . . . . . . 1 . . . . 1 . . . . . . . . . . . . . . . . . . . . . Best Kill Streak 16 | 2 5 3 9 1 . 12 6 16 7 4 1 12 7 4 5 . 3 4 6 2 1 3 7 . 6 3 7 . 5 5 6 6 2 1 3 13 Combat Bots Only 12 | . 3 3 5 1 . 9 4 7 5 4 1 11 5 4 5 . 3 3 5 1 1 3 5 . 6 3 6 . 5 4 4 5 2 . 1 12 Max Kills in Single Turn 7 | 1 2 2 3 1 . 3 2 4 3 2 1 2 3 3 2 . 1 1 1 1 1 1 7 . 2 1 1 . 1 1 1 2 1 1 2 3 Gunslinging 1 | . 1 1 . . . . . . . . . . . . . . . . . . . . . . . . . . . . . . . . . 1 Exploded 5 | . . . 3 . . 3 2 3 3 2 . 2 2 3 2 . . . . . . . 5 . . 1 . . . . . . . . 1 . Melee 2 | . . . 1 1 . . 1 2 2 1 1 1 1 1 1 . 1 1 1 1 1 1 2 . 1 1 1 . 1 1 1 2 . . . . Uniques/NPCs Destroyed 2 | . . . . 1 . . . . . . . . . . . . . . . . . . . . . . . . . . . . . . . 1 YI-UF0 (-9/Mines) MAIN.C Shell (-1/Command) Combat | -11 -10 -10 -9 -9 -9 -8 -8 -7 -7 -7 -7 -6 -6 -6 -6 -6 -5 -5 -5 -5 -5 -5 -4 -4 -4 -4 -4 -4 -3 -3 -3 -3 -2 -2 -1 -1 -------- Run | Yrd Mat Min Mat Min Exi Min Mat Fac Low Low Zio Pro Fac Low Low Dat Pro Fac Ext Cet Arc Hub Fac Was Fac Upp Upp Zhi Pro Res Qua Sec Res Tes Acc Com Hostile Shots Fired 2601 | . 40 28 113 12 . 27 30 271 42 53 . 91 362 9 69 . 25 63 67 30 1 55 155 . 137 37 40 . 27 20 65 116 45 68 32 471 Missed 1217 | . 14 7 35 2 . 12 17 125 13 23 . 42 193 5 39 . 10 23 27 17 . 27 87 . 82 21 21 . 20 12 45 72 25 23 12 166 Intercepted 28 | . . . . . . . . . . . . . . . . . . . . . . . . . . . . . . . . . . . . 28 Damage Taken 19529 | . 221 245 736 174 . 129 90 1466 407 344 . 629 2255 46 432 . 292 782 748 343 18 785 1447 69 892 294 336 . 179 127 340 965 99 452 133 4054 Core 14543 | . 180 192 562 105 . 96 64 1053 299 249 . 461 1691 35 297 . 222 651 563 237 14 560 1020 54 634 214 220 . 137 78 265 742 28 376 25 3219 Absorbed by Shields 4738 | . . . 175 66 . 51 37 254 121 130 . 235 649 17 149 . 102 . 183 127 7 122 177 26 330 40 7 . 40 47 124 279 105 14 142 982 Redirected to Core 11753 | . 122 170 423 105 . 73 52 858 175 206 . 382 1330 13 199 . 149 476 423 201 14 414 785 46 498 197 208 . 125 78 197 603 14 337 2 2878 Redirected to Shielding 456 | . . . . . . . . . . . . . . . . . . . . . . . . . . . . . . . . . 69 12 108 267 Ignored by Resistances 6400 | . . . . . . . . . . . . . . . . . . . . . . . . . . . . . . . . 250 213 481 285 5171 Regen/Repaired (Parts) 1373 | . . . 27 . . . . 119 . . . . 210 . . . . 30 62 59 . 66 247 . 131 27 64 . 8 36 29 60 . . 81 117 Core Remaining (%) 81 | 100 . 100 . . . 78 88 . . . . 81 . . . . 62 . . . . 100 . . . . . . 100 . . 52 . 50 . . Volleys Fired 399 | 3 37 14 52 2 . 9 3 19 8 5 . 20 24 2 4 . 4 . 2 . . 1 1 . . 6 1 . . . . 13 8 18 20 123 Largest 3 | 3 3 3 3 1 . 1 1 1 1 1 . 1 1 1 1 . 1 . 1 . . 1 1 . . 1 1 . . . . 2 2 3 3 3 Hottest 300 | 100 100 60 124 33 . 33 36 39 39 39 . 39 39 39 39 . 39 . 43 . . 20 43 . . 43 43 . . . . 200 200 250 300 300 Shots Fired 855 | 9 111 42 144 2 . 9 3 19 8 5 . 20 24 2 4 . 4 . 2 . . 1 1 . . 6 1 . . . . 23 16 24 36 339 Gun 730 | 9 111 42 140 . . . . . . . . . 7 . . . . . . . . . . . . . . . . . . 21 16 9 36 339 Cannon 17 | . . . . . . . . . . . . . . . . . . . . . . . . . . . . . . . . 2 . 15 . . Launcher 106 | . . . 4 2 . 9 3 19 8 5 . 20 17 2 4 . 3 . 2 . . . 1 . . 6 1 . . . . . . . . . Special 2 | . . . . . . . . . . . . . . . . . 1 . . . . 1 . . . . . . . . . . . . . . Kinetic 226 | 3 85 42 89 . . . . . . . . . 7 . . . . . . . . . . . . . . . . . . . . . . . Thermal 99 | 6 26 . 48 . . . . . . . . . . . . . 1 . . . . 1 . . . . . . . . . 2 . 15 . . Explosive 106 | . . . 4 2 . 9 3 19 8 5 . 20 17 2 4 . 3 . 2 . . . 1 . . 6 1 . . . . . . . . . Electromagnetic 3 | . . . 3 . . . . . . . . . . . . . . . . . . . . . . . . . . . . . . . . . Slashing 421 | . . . . . . . . . . . . . . . . . . . . . . . . . . . . . . . . 21 16 9 36 339 Robot Hit Streak 25 | 2 7 4 14 . . 3 1 5 3 4 . 5 8 1 2 . 1 . . . . . . . . 6 7 . . . . 6 1 1 5 25 Robot Miss Streak 5 | 2 4 5 3 2 . 5 1 1 1 . . 1 2 2 1 . 1 . . . . . . . . . . . . . . 4 2 3 2 3 Penetration Max 1 | . . . . . . . . . . . . . . . . . . . . . . . . . . . . . . . . 1 1 1 . 1 Secondary Targets 26 | . 3 2 4 . . . . . . . . . . . . . . . . . . . . . . . . . . . . . 1 . . 16 Max Gunslinging Chain 1 | . 1 1 1 . . . . . . . . . . . . . . . . . . . . . . . . . . . . . 1 . . 1 Shots Hit Robots 1618 | 3 54 22 120 17 . 5 13 120 34 36 4 39 126 4 44 . 17 74 91 16 4 38 157 . 67 12 17 . 29 33 51 89 3 3 19 257 Core Hits 841 | 3 23 10 41 . . 10 7 82 24 25 2 50 93 7 13 . 9 36 31 8 3 10 71 . 35 17 13 . 12 13 17 39 2 2 11 122 Critical Kills 3 | . . . 2 . . . . 1 . . . . . . . . . . . . . . . . . . . . . . . . . . . . Critical Parts Destroyed 17 | . . . 7 3 . 1 4 2 . . . . . . . . . . . . . . . . . . . . . . . . . . . . Critical Strikes 144 | . . . 12 3 . 1 4 13 2 1 . 3 24 . 6 . 3 6 9 3 1 2 15 . 8 . . . 3 1 6 14 . . 1 3 Burn 3 | . . . 3 . . . . . . . . . . . . . . . . . . . . . . . . . . . . . . . . . Destroy 2 | . . . 2 . . . . . . . . . . . . . . . . . . . . . . . . . . . . . . . . . Smash 20 | . . . 7 3 . 1 4 5 . . . . . . . . . . . . . . . . . . . . . . . . . . . . Sever 114 | . . . . . . . . 3 2 1 . 3 24 . 6 . 3 6 9 3 1 2 15 . 8 . . . 3 1 6 14 . . 1 3 Impale 5 | . . . . . . . . 5 . . . . . . . . . . . . . . . . . . . . . . . . . . . . Melee Attacks 1783 | . . . 36 25 . 1 26 178 45 50 8 37 215 4 46 . 22 158 108 46 8 49 225 . 113 12 23 . 41 62 61 138 11 10 25 . Impact 115 | . . . 36 25 . 1 26 27 . . . . . . . . . . . . . . . . . . . . . . . . . . . . Slashing 1553 | . . . . . . . . 82 45 50 8 37 215 4 39 . 22 158 70 46 8 49 224 . 113 12 23 . 41 62 61 138 11 10 25 . Piercing 68 | . . . . . . . . 68 . . . . . . . . . . . . . . . . . . . . . . . . . . . . Sneak Attacks 168 | . . . 4 . . . 2 20 7 7 . . 17 . 7 . 4 8 45 . . 2 13 . 3 . 4 . 2 7 9 2 . 1 4 . Combat Hostiles 30 | . . . . . . . . . 4 2 . . 4 . . . . 1 2 . . 2 7 . 2 . 2 . 1 1 . 1 . . 1 . Follow-up Attacks 376 | . . . 7 6 . . 3 29 14 8 2 14 32 . 18 . 4 23 21 9 2 21 64 . 23 2 3 . 16 9 22 24 . . . . Damage Inflicted 98314 | 38 643 205 3315 713 . 704 926 7201 2403 2526 153 3842 9096 610 2201 . 915 3834 3461 841 164 1903 10097 . 3717 1310 1079 . 1583 2078 3085 5321 301 288 1718 22043 Guns 26661 | 38 643 205 1382 . . . . . . . . . 62 . . . . . . . . . . . . . . . . . . 1003 301 107 877 22043 Cannons . | . . . . . . . . . . . . . . . . . . . . . . . . . . . . . . . . . . . . . Explosions 15254 | . . . 517 61 . 669 328 2209 965 824 . 2717 2833 270 626 . 114 . 293 . . . 1602 . . 921 72 . . . . . . . 233 . Melee 56344 | . . . 1416 652 . 35 598 4992 1438 1702 153 1125 6201 340 1575 . 784 3834 3168 841 164 1903 8495 . 3717 389 1007 . 1583 2078 3085 4318 . 181 570 . Ramming 38 | . . . . . . . . . . . . . . . . . . . . . . . . . . . . . . . . . . . 38 . Kinetic 1553 | 28 477 205 781 . . . . . . . . . 62 . . . . . . . . . . . . . . . . . . . . . . . Thermal 2769 | 10 166 . 568 . . . . . . . . . 561 . . . 17 . . . . . 1214 . . . . . . . . . . . 233 . Explosive 13246 | . . . 517 61 . 669 328 2209 965 824 . 2717 2272 270 626 . 114 . 293 . . . 388 . . 921 72 . . . . . . . . . Electromagnetic 33 | . . . 33 . . . . . . . . . . . . . . . . . . . . . . . . . . . . . . . . . Impact 3300 | . . . 1416 652 . 35 598 599 . . . . . . . . . . . . . . . . . . . . . . . . . . . . Slashing 75758 | . . . . . . . . 2776 1438 1702 153 1125 6201 340 1575 . 784 3834 3168 841 164 1903 8495 . 3717 389 1007 . 1583 2078 3085 5321 301 288 1447 22043 Piercing 1617 | . . . . . . . . 1617 . . . . . . . . . . . . . . . . . . . . . . . . . . . . Highest Corruption 5 | . . . . . . . . . . . . . 1 . 1 . . 1 . . . 5 1 . 1 . . . . . . 3 2 2 3 2 Average Corruption 1 | . . . . . . . . . . . . . 1 . 1 . . 1 . . . 3 1 . 1 . . . . . . 2 2 2 2 1 Corruption Purged 14 | . . . . . . . . . . . . . 1 . 1 . . 2 . . . . 1 . 3 . . . . . . . . . 3 3 Corruption Blocked . | . . . . . . . . . . . . . . . . . . . . . . . . . . . . . . . . . . . . . Effects 40 | . . . . . . . . . . . . . 1 . 1 . . . . . . 6 1 . 1 . . . . . . 11 4 6 6 3 Message Errors 9 | . . . . . . . . . . . . . . . . . . . . . . 1 . . . . . . . . . 4 2 . 2 . Matter Fused 5 | . . . . . . . . . . . . . . . . . . . . . . 2 1 . . . . . . . . 1 . . . 1 Heat Flow Errors 6 | . . . . . . . . . . . . . . . . . . . . . . 1 . . . . . . . . . 3 . 1 1 . Energy Discharges 8 | . . . . . . . . . . . . . 1 . . . . . . . . . . . 1 . . . . . . . 1 1 3 1 Parts Rejected 2 | . . . . . . . . . . . . . . . . . . . . . . 1 . . . . . . . . . . . 1 . . Parts Fused 2 | . . . . . . . . . . . . . . . . . . . . . . . . . . . . . . . . . . 1 . 1 Data Loss (minor) 3 | . . . . . . . . . . . . . . . . . . . . . . . . . . . . . . . . 1 1 1 . . Data Loss (major) 3 | . . . . . . . . . . . . . . . 1 . . . . . . 1 . . . . . . . . . 1 . . . . Misfires 1 | . . . . . . . . . . . . . . . . . . . . . . . . . . . . . . . . . . 1 . . Weapon Failures 1 | . . . . . . . . . . . . . . . . . . . . . . . . . . . . . . . . 1 . . . . Overload Shots . | . . . . . . . . . . . . . . . . . . . . . . . . . . . . . . . . . . . . . Overflow Damage 6970 | . . . 743 241 . 106 259 819 263 266 . 43 799 54 149 . 180 424 269 . . 162 1042 . 255 99 . . 21 286 276 134 . . 80 . Projectiles . | . . . . . . . . . . . . . . . . . . . . . . . . . . . . . . . . . . . . . Explosions 932 | . . . . . . 71 13 75 77 51 . 33 228 9 37 . . . . . . . 262 . . 28 . . . . . . . . 48 . Melee 6038 | . . . 743 241 . 35 246 744 186 215 . 10 571 45 112 . 180 424 269 . . 162 780 . 255 71 . . 21 286 276 134 . . 32 . Knockbacks 12 | . . . 7 2 . . 3 . . . . . . . . . . . . . . . . . . . . . . . . . . . . . Impact 12 | . . . 7 2 . . 3 . . . . . . . . . . . . . . . . . . . . . . . . . . . . . Kinetic . | . . . . . . . . . . . . . . . . . . . . . . . . . . . . . . . . . . . . . Secondary . | . . . . . . . . . . . . . . . . . . . . . . . . . . . . . . . . . . . . . Self-Inflicted Damage 385 | . . . 35 32 . 42 . 5 . . . 62 99 . 7 . 41 . . . . . . . . . . . . . . . . . 62 . Shots 13 | . . . 2 1 . 2 . 1 . . . 1 2 . 1 . 1 . . . . . . . . . . . . . . . . . 2 . Rammed . | . . . . . . . . . . . . . . . . . . . . . . . . . . . . . . . . . . . . . Targets Rammed 2 | . . . . . . . . . . . . . . . . . . . . . . . . . . . . . . . . . . . 2 . Kicked 2 | . . . . . . . . . . . . . . . . . . . . . . . . . . . . . . . . . . . 2 . Crushed . | . . . . . . . . . . . . . . . . . . . . . . . . . . . . . . . . . . . . . Highest Temperature 302 | 78 284 103 123 20 . 3 13 164 302 8 . 9 7 . . . . . . . . 239 . . . . . . . . . 238 . 95 135 141 Average Temperature 49 | 33 62 43 25 10 . 3 3 18 98 8 . 6 3 . . . . . . . . 123 . . . . . . . . . 86 . 95 130 122 Received Heat Transfer 3441 | . 30 105 266 12 . . 6 389 161 99 . 149 390 . 102 . 78 153 123 57 . 33 129 . 122 53 9 . 27 . 18 36 28 58 12 796 Effects 3 | . 3 . . . . . . . . . . . . . . . . . . . . . . . . . . . . . . . . . . . Energy Bleed 1 | . 1 . . . . . . . . . . . . . . . . . . . . . . . . . . . . . . . . . . . Interference 2 | . 2 . . . . . . . . . . . . . . . . . . . . . . . . . . . . . . . . . . . Siege Activations . | . . . . . . . . . . . . . . . . . . . . . . . . . . . . . . . . . . . . . Robots Corrupted . | . . . . . . . . . . . . . . . . . . . . . . . . . . . . . . . . . . . . . Combat Hostiles . | . . . . . . . . . . . . . . . . . . . . . . . . . . . . . . . . . . . . . Parts Fried 31 | . . . 9 2 . . 9 7 . . . . 1 . . . . . . . . 3 . . . . . . . . . . . . . . Impact Corruptions 55 | . . . 25 8 . 2 9 11 . . . . . . . . . . . . . . . . . . . . . . . . . . . . Robots Melted . | . . . . . . . . . . . . . . . . . . . . . . . . . . . . . . . . . . . . . Combat Hostiles . | . . . . . . . . . . . . . . . . . . . . . . . . . . . . . . . . . . . . . Parts Melted 11 | . . . 3 . . . . . 1 2 . . 1 . . . . . 2 . . . . . . . . . . . . . . . . 2 Heat Transferred 3191 | 25 375 . 1554 . . . . . . . . . 400 . . . 37 . . . . . 700 . . . . . . . . . . . 100 . Parts Sabotaged . | . . . . . . . . . . . . . . . . . . . . . . . . . . . . . . . . . . . . . Parts Stolen . | . . . . . . . . . . . . . . . . . . . . . . . . . . . . . . . . . . . . . Parts Stripped . | . . . . . . . . . . . . . . . . . . . . . . . . . . . . . . . . . . . . . Power Chain Reactions . | . . . . . . . . . . . . . . . . . . . . . . . . . . . . . . . . . . . . . Alert | -11 -10 -10 -9 -9 -9 -8 -8 -7 -7 -7 -7 -6 -6 -6 -6 -6 -5 -5 -5 -5 -5 -5 -4 -4 -4 -4 -4 -4 -3 -3 -3 -3 -2 -2 -1 -1 ------- Run | Yrd Mat Min Mat Min Exi Min Mat Fac Low Low Zio Pro Fac Low Low Dat Pro Fac Ext Cet Arc Hub Fac Was Fac Upp Upp Zhi Pro Res Qua Sec Res Tes Acc Com Peak Influence 3241 | 10 115 184 702 329 . 299 315 855 . . . . 1607 . . . . 609 695 723 389 373 862 387 854 . . . . 468 400 1600 1765 1786 2047 3241 Initial 1309 | . 6 . . 229 . . 116 142 . . . . 389 . . . . 65 275 362 222 135 151 283 270 . . . . 198 222 27 1100 1100 1100 1309 Average 531 | 2 68 40 256 295 . 122 200 490 . . . . 1070 . . . . 212 296 559 381 254 475 310 464 . . . . 305 132 386 1263 1224 1257 2172 Maximum Alert Level 5 | . . . 3 1 . 1 1 3 . . . . 5 . . . . 2 2 3 1 1 3 1 3 . . . . 2 2 5 5 5 5 5 Low Security (%) 25 | 100 100 100 54 . . 65 54 2 . . . . . . . . . 53 11 . . 15 10 . 18 . . . . 8 73 8 . . . . Level 1 31 | . . . 9 100 . 34 45 42 . . . . 10 . . . . 37 76 1 100 84 22 100 21 . . . . 79 20 45 . . . . Level 2 19 | . . . 35 . . . . 38 . . . . 12 . . . . 9 12 90 . . 58 . 39 . . . . 11 5 45 . . . . Level 3 6 | . . . . . . . . 16 . . . . 19 . . . . . . 8 . . 8 . 20 . . . . . . . 8 . 10 . Level 4 12 | . . . . . . . . . . . . . 53 . . . . . . . . . . . . . . . . . . . 73 85 74 23 Level 5 1 | . . . . . . . . . . . . . 4 . . . . . . . . . . . . . . . . . . . . . . 14 High Security 2 | . . . . . . . . . . . . . . . . . . . . . . . . . . . . . . . . . . . . 62 Max Security 1 | . . . . . . . . . . . . . . . . . . . . . . . . . . . . . . . . . 18 14 15 . Squads Dispatched 135 | . 2 . 6 . . . 2 16 . . . 1 19 . . . . 9 2 . . 4 6 . 8 . . . . 9 3 2 10 9 16 11 Investigation 45 | . 2 . 2 . . . . 10 . . . . 8 . . . . 6 . . . . 4 . 5 . . . . 5 . . 1 2 . . Extermination 17 | . . . . . . . . 1 . . . . 5 . . . . 2 . . . 2 2 . 2 . . . . . 1 1 1 . . . Reinforcement 31 | . . . 3 . . . 1 5 . . . . 3 . . . . 1 2 . . 2 . . . . . . . 4 2 1 . 1 3 3 Assault 41 | . . . 1 . . . . . . . . 1 3 . . . . . . . . . . . 1 . . . . . . . 8 6 13 8 Garrison 1 | . . . . . . . 1 . . . . . . . . . . . . . . . . . . . . . . . . . . . . . Intercept . | . . . . . . . . . . . . . . . . . . . . . . . . . . . . . . . . . . . . . Searches Triggered . | . . . . . . . . . . . . . . . . . . . . . . . . . . . . . . . . . . . . . Construction Impeded 5 | . . . . . . . . 3 . . . . 1 . . . . . 1 . . . . . . . . . . . . . . . . . Haulers Reinforced 5 | . . . . . . . . 1 . . . . 2 . . . . . . . . . . . . . . . . 1 . . . . 1 . Active Scanning Responses . | . . . . . . . . . . . . . . . . . . . . . . . . . . . . . . . . . . . . . Cargo Convoy Interrupts . | . . . . . . . . . . . . . . . . . . . . . . . . . . . . . . . . . . . . . Stealth | -11 -10 -10 -9 -9 -9 -8 -8 -7 -7 -7 -7 -6 -6 -6 -6 -6 -5 -5 -5 -5 -5 -5 -4 -4 -4 -4 -4 -4 -3 -3 -3 -3 -2 -2 -1 -1 --------- Run | Yrd Mat Min Mat Min Exi Min Mat Fac Low Low Zio Pro Fac Low Low Dat Pro Fac Ext Cet Arc Hub Fac Was Fac Upp Upp Zhi Pro Res Qua Sec Res Tes Acc Com Distress Signals 31 | . . . 3 . . . 2 1 . . . . 2 . . . . 3 2 2 . . 1 . 2 . . . 1 2 . 2 1 . 3 4 Communications Jammed 128 | . . . . . . . . . . . . . . . . . . 2 1 . . 20 6 . 9 . . . . 5 4 36 . . 45 . Distress Signals 123 | . . . . . . . . . . . . . . . . . . 2 1 . . 20 1 . 9 . . . . 5 4 36 . . 45 . Times Spotted 881 | . 18 7 40 10 . 7 13 55 23 17 2 26 76 4 7 . 5 50 32 10 4 24 64 4 50 10 9 . 10 19 14 41 31 43 25 131 Peak Tracking Total 49 | . 3 3 8 3 . 4 6 5 5 4 1 8 7 4 5 . 3 11 6 5 2 6 6 2 12 5 4 . 5 3 2 7 28 32 17 49 Tactical Retreats 64 | . 1 . . 2 . . 1 . . 2 . . 9 . . . . 8 7 . . 1 2 . 2 1 3 . . 2 2 3 2 4 5 7 Traps | -11 -10 -10 -9 -9 -9 -8 -8 -7 -7 -7 -7 -6 -6 -6 -6 -6 -5 -5 -5 -5 -5 -5 -4 -4 -4 -4 -4 -4 -3 -3 -3 -3 -2 -2 -1 -1 ------- Run | Yrd Mat Min Mat Min Exi Min Mat Fac Low Low Zio Pro Fac Low Low Dat Pro Fac Ext Cet Arc Hub Fac Was Fac Upp Upp Zhi Pro Res Qua Sec Res Tes Acc Com Traps Triggered 19 | . 1 . 2 . . . . 1 . . . . 1 . . . . . 3 . . . 1 . 1 . . . . 1 . 1 2 1 2 2 Indirectly . | . . . . . . . . . . . . . . . . . . . . . . . . . . . . . . . . . . . . . Trap Hack Attempts 113 | . . . . . . . . . . . . . 27 . . . . 72 1 . . 9 4 . . . . . . . . . . . . . Triggered 2 | . . . . . . . . . . . . . 1 . . . . 1 . . . . . . . . . . . . . . . . . . Disarmed 6 | . . . . . . . . . . . . . . . . . . . . . . . 6 . . . . . . . . . . . . . Reprogrammed 32 | . . . . . . . . . . . . . 8 . . . . 16 . . . 1 7 . . . . . . . . . . . . . Reused 21 | . . . . . . . . . 2 2 . . 4 . . . . 1 7 . . 1 2 . . . 1 . . . 1 . . . . . Traps Extracted 27 | . . . . . . . . . . . . . . . . . . 15 11 . . . . . . . 1 . . . . . . . . . Installed 33 | . . . . . . . . . 3 6 . . . . . . . . 18 . . . . . . . 2 . . . 4 . . . . . Triggered 24 | . . . . . . . . . 4 3 . . 4 . . . . 1 7 . . 1 2 . . . 1 . . . 1 . . . . . Most Traps Carried 15 | . . . . . . . . . 3 3 . . . . . . . 15 15 8 8 8 8 5 5 . 6 5 8 8 8 4 . . . . Machines | -11 -10 -10 -9 -9 -9 -8 -8 -7 -7 -7 -7 -6 -6 -6 -6 -6 -5 -5 -5 -5 -5 -5 -4 -4 -4 -4 -4 -4 -3 -3 -3 -3 -2 -2 -1 -1 ---------- Run | Yrd Mat Min Mat Min Exi Min Mat Fac Low Low Zio Pro Fac Low Low Dat Pro Fac Ext Cet Arc Hub Fac Was Fac Upp Upp Zhi Pro Res Qua Sec Res Tes Acc Com Machines Disabled 58 | . . . . . . . 1 4 . 1 . . 22 . 1 . . 1 1 . 1 1 5 . . 1 . . . . 1 6 1 1 6 4 Max in Single Turn 11 | . . . . . . . 1 2 . 1 . . 11 . 1 . . . . . . . 4 . . 1 . . . . 1 1 1 1 2 1 Garrison Access 27 | . . . . . . . 1 3 . . . . 4 . . . . 3 . . . 2 3 . 1 . . . . 3 1 1 1 1 3 . Network Hub 3 | . . . . . . . . . . . . . . . . . . . . . . 3 . . . . . . . . . . . . . . Energy Cycler 2 | . . . . . . . . . . . . . . . . . . . . . . . . . . . . . . . . . . . 2 . Machines Repaired . | . . . . . . . . . . . . . . . . . . . . . . . . . . . . . . . . . . . . . Machines Dismantled 27 | . . . . . . . . . . . . . 7 . . . . 9 . 1 . 2 3 . . . . . . . . 3 . . 1 1 Machines Sabotaged . | . . . . . . . . . . . . . . . . . . . . . . . . . . . . . . . . . . . . . Overloaded Fab Kills . | . . . . . . . . . . . . . . . . . . . . . . . . . . . . . . . . . . . . . Hacking | -11 -10 -10 -9 -9 -9 -8 -8 -7 -7 -7 -7 -6 -6 -6 -6 -6 -5 -5 -5 -5 -5 -5 -4 -4 -4 -4 -4 -4 -3 -3 -3 -3 -2 -2 -1 -1 --------- Run | Yrd Mat Min Mat Min Exi Min Mat Fac Low Low Zio Pro Fac Low Low Dat Pro Fac Ext Cet Arc Hub Fac Was Fac Upp Upp Zhi Pro Res Qua Sec Res Tes Acc Com Machines Accessed 232 | . 9 2 6 . 1 . 4 27 . . . . 31 2 . 4 1 27 6 2 . 7 24 . 10 2 1 6 . 13 10 12 4 5 11 5 Terminals 132 | . 8 2 4 . . . 3 14 . . . . 16 1 . . 1 14 5 2 . 5 13 . 3 . . . . 6 8 11 3 3 6 4 Fabricators 31 | . . . . . . . . 6 . . . . 5 . . . . 6 . . . . 4 . 4 . . . . 4 . . . 1 1 . Repair Stations 11 | . . . 1 . . . . 2 . . . . 2 . . . . 2 . . . . 1 . 1 . . . . . . . . . 1 1 Recycling Units 9 | . 1 . . . . . . 1 . . . . 2 . . . . 1 1 . . . 2 . 1 . . . . . . . . . . . Scanalyzers 7 | . . . 1 . . . . 1 . . . . 2 . . . . 1 . . . . 1 . . . . . . . 1 . . . . . Garrison Access 27 | . . . . . . . 1 3 . . . . 4 . . . . 3 . . . 2 3 . 1 . . . . 3 1 1 1 1 3 . Total Hacks 895 | . 30 6 14 . 1 . 13 106 . . . . 98 2 . 30 4 120 15 6 . 15 134 . 49 9 1 18 . 65 30 36 24 17 33 19 Successful 555 | . 13 5 8 . 1 . 11 70 . . . . 59 2 . 30 4 82 8 4 . 9 78 . 29 9 1 18 . 33 18 27 10 4 13 9 Failed 339 | . 17 1 6 . . . 2 35 . . . . 39 . . . . 38 7 2 . 6 56 . 20 . . . . 32 12 9 14 13 20 10 Catastrophic 62 | . 2 . 1 . . . 2 4 . . . . 8 . . . . 5 4 . . 1 10 . . . . . . 6 2 2 5 5 5 . Database Lockouts 1 | . . . . . . . . 1 . . . . . . . . . . . . . . . . . . . . . . . . . . . . Manual 424 | . 18 4 6 . . . 6 57 . . . . 45 . . . . 70 11 1 1 3 71 . 20 . . . . 35 14 26 12 12 9 3 Terminals 556 | . 27 6 9 . . . 11 61 . . . . 55 1 . . 4 76 11 6 . 9 91 . 17 . . . . 40 28 35 23 12 20 14 Fabricators 151 | . . . . . . . . 28 . . . . 21 . . . . 27 . . . . 22 . 24 . . . . 20 . . . 3 6 . Repair Stations 31 | . . . 2 . . . . 5 . . . . 5 . . . . 6 . . . . 2 . 2 . . . . . . . . . 4 5 Recycling Units 30 | . 3 . . . . . . 2 . . . . 6 . . . . 2 4 . . . 9 . 4 . . . . . . . . . . . Scanalyzers 16 | . . . 3 . . . . 3 . . . . 5 . . . . 2 . . . . 2 . . . . . . . 1 . . . . . Garrison Access 51 | . . . . . . . 2 7 . . . . 6 . . . . 7 . . . 6 8 . 2 . . . . 5 1 1 1 2 3 . Terminal Hacks 252 | . 7 3 3 . 1 . 7 22 . . . . 14 2 . 30 4 29 2 4 . 5 34 . 7 9 1 18 . 11 10 16 5 . 4 4 Record 40 | . . 1 . . 1 . . . . . . . . 1 . 11 4 . . 4 . . . . . 9 . 7 . . 2 . . . . . Part Schematic 36 | . . . . . . . . 5 . . . . 3 . . 10 . 9 . . . . 4 . 1 . . 3 . 1 . . . . . . Robot Schematic 15 | . 1 . . . . . . 1 . . . . 2 . . 6 . 3 . . . 1 1 . . . . . . . . . . . . . Robot Analysis 8 | . . . . . . . . 1 . . . . . . . . . . . . . . 1 . . . . 4 . . 1 1 . . . . Prototype ID Bank 16 | . 2 . . . . . . 2 . . . . . . . 3 . 2 . . . . 1 . . . . 4 . . . 1 . . . 1 Open Door 9 | . . . . . . . . . . . . . . 1 . . . 1 1 . . . . . . . 1 . . . . 4 . . 1 . Level Access Points 3 | . . . . . . . . . . . . . . . . . . . . . . . 1 . . . . . . 1 . 1 . . . . Branch Access Points 8 | . . . . . . . 1 1 . . . . . . . . . 1 . . . 1 1 . 1 . . . . 1 . . 1 . . . Emergency Access Points 2 | . . . 1 . . . . . . . . . . . . . . . . . . . 1 . . . . . . . . . . . . . Machine Index 4 | . . . . . . . . . . . . . 1 . . . . . . . . . 1 . . . . . . 1 . 1 . . . . Terminal Index 10 | . . 1 1 . . . 1 1 . . . . . . . . . . . . . 1 1 . . . . . . . 1 1 . . 1 1 Fabricator Index 2 | . . . . . . . . . . . . . . . . . . 1 . . . . 1 . . . . . . . . . . . . . Repair Station Index 3 | . . . . . . . . 1 . . . . . . . . . . . . . . . . . . . . . . . . 1 . 1 . Recycling Unit Index 2 | . . . . . . . . . . . . . . . . . . . . . . . . . . . . . . 1 1 . . . . . Scanalyzer Index 3 | . . . . . . . . 1 . . . . . . . . . . . . . . . . . . . . . 1 . . 1 . . . Garrison Index 3 | . . . . . . . . 1 . . . . . . . . . . . . . . 1 . . . . . . . . . 1 . . . Alert Level 14 | . . . . . . . 1 . . . . . 1 . . . . 1 . . . . 5 . 1 . . . . 1 1 1 1 . . 1 Unreport Threat 25 | . . . . . . . 1 4 . . . . 4 . . . . 3 1 . . . 5 . 4 . . . . . 2 1 . . . . Locate Traps 17 | . 3 . 1 . . . 1 2 . . . . 1 . . . . . . . . 2 4 . . . . . . 1 1 . . . 1 . Disarm Traps 1 | . . . . . . . . . . . . . . . . . . . . . . . 1 . . . . . . . . . . . . . Reprogram Traps 3 | . . . . . . . . . . . . . . . . . . 2 . . . . 1 . . . . . . . . . . . . . Dispatch Records 1 | . . . . . . . . . . . . . . . . . . . . . . . . . . . . . . . . 1 . . . . Security Status 1 | . . . . . . . . . . . . . . . . . . . . . . . . . . . . . . . . 1 . . . . Surveillance Status 1 | . . . . . . . . . . . . . . . . . . 1 . . . . . . . . . . . . . . . . . . Patrol Status 1 | . . 1 . . . . . . . . . . . . . . . . . . . . . . . . . . . . . . . . . . Recall Investigation 4 | . . . . . . . . . . . . . . . . . . 2 . . . . 1 . . . . . . 1 . . . . . . Recall Extermination 4 | . . . . . . . . . . . . . 1 . . . . 1 . . . . . . . . . . . 1 . 1 . . . . Recall Reinforcements 1 | . . . . . . . . . . . . . . . . . . . . . . . . . . . . . . . 1 . . . . . Recall Assault 1 | . . . . . . . . . . . . . 1 . . . . . . . . . . . . . . . . . . . . . . . Hauler Manifests 2 | . 1 . . . . . . . . . . . . . . . . . . . . . 1 . . . . . . . . . . . . . Registered Components 4 | . . . . . . . 1 1 . . . . . . . . . . . . . . . . . . . . . 1 . 1 . . . . Registered Prototypes 3 | . . . . . . . . 1 . . . . . . . . . 1 . . . . 1 . . . . . . . . . . . . . Zone Layout 3 | . . . . . . . 1 . . . . . . . . . . 1 . . . . 1 . . . . . . . . . . . . . Activate Exoskeleton 1 | . . . . . . . . . . . . . . . . . . . . . . . . . . . . . . . . 1 . . . . Disengage Seal 1 | . . . . . . . . . . . . . . . . . . . . . . . . . . . . . . . . . . . . 1 Fabricator Hacks 79 | . . . . . . . . 17 . . . . 14 . . . . 16 . . . . 10 . 11 . . . . 8 . . . 1 2 . Network Status 9 | . . . . . . . . 1 . . . . 1 . . . . 2 . . . . 1 . 1 . . . . 1 . . . 1 1 . Load Schematic 37 | . . . . . . . . 10 . . . . 6 . . . . 7 . . . . 5 . 5 . . . . 4 . . . . . . Build 33 | . . . . . . . . 6 . . . . 7 . . . . 7 . . . . 4 . 5 . . . . 3 . . . . 1 . Repair Station Hacks 25 | . . . 2 . . . . 4 . . . . 5 . . . . 4 . . . . 2 . 2 . . . . . . . . . 2 4 Scan Component 13 | . . . 1 . . . . 2 . . . . 3 . . . . 2 . . . . 1 . 1 . . . . . . . . . 1 2 Repair 12 | . . . 1 . . . . 2 . . . . 2 . . . . 2 . . . . 1 . 1 . . . . . . . . . 1 2 Recycling Unit Hacks 3 | . . . . . . . . . . . . . . . . . . . 1 . . . 1 . 1 . . . . . . . . . . . Report Inventory 1 | . . . . . . . . . . . . . . . . . . . . . . . . . 1 . . . . . . . . . . . Retrieve Components 2 | . . . . . . . . . . . . . . . . . . . 1 . . . 1 . . . . . . . . . . . . . Scanalyzer 13 | . . . 2 . . . . 3 . . . . 4 . . . . 2 . . . . 2 . . . . . . . . . . . . . Insert Component 6 | . . . 1 . . . . 1 . . . . 2 . . . . 1 . . . . 1 . . . . . . . . . . . . . Analyze 7 | . . . 1 . . . . 2 . . . . 2 . . . . 1 . . . . 1 . . . . . . . . . . . . . Garrison Access Hacks 26 | . . . . . . . 1 3 . . . . 3 . . . . 3 . . . 2 3 . 1 . . . . 3 1 1 1 1 3 . Seal Access 26 | . . . . . . . 1 3 . . . . 3 . . . . 3 . . . 2 3 . 1 . . . . 3 1 1 1 1 3 . Unauthorized Hacks 157 | . 6 2 1 . . . 3 21 . . . . 19 . . . . 28 5 . . 2 26 . 7 . . . . 11 7 10 4 2 2 1 Terminals 106 | . 6 2 1 . . . 3 10 . . . . 10 . . . . 19 3 . . 2 16 . 2 . . . . 7 6 10 4 2 2 1 Track 16 | . . 1 . . . . . 1 . . . . 1 . . . . 6 . . . . 2 . . . . . . . 1 4 . . . . Assimilate 11 | . . . . . . . . 2 . . . . 4 . . . . . . . . 1 1 . . . . . . 1 1 . . 1 . . Botnet 74 | . 5 1 1 . . . 3 6 . . . . 5 . . . . 12 3 . . 1 12 . 2 . . . . 6 4 6 3 1 2 1 Operators 5 | . 1 . . . . . . 1 . . . . . . . . . 1 . . . . 1 . . . . . . . . . 1 . . . Fabricators 32 | . . . . . . . . 9 . . . . 4 . . . . 7 . . . . 5 . 3 . . . . 4 . . . . . . Report 3 | . . . . . . . . . . . . . 1 . . . . 1 . . . . . . . . . . . 1 . . . . . . Prioritize 13 | . . . . . . . . 1 . . . . 2 . . . . 4 . . . . 3 . . . . . . 3 . . . . . . Liberate 4 | . . . . . . . . 2 . . . . . . . . . . . . . . 1 . 1 . . . . . . . . . . . Recompile 12 | . . . . . . . . 6 . . . . 1 . . . . 2 . . . . 1 . 2 . . . . . . . . . . . Repair Stations . | . . . . . . . . . . . . . . . . . . . . . . . . . . . . . . . . . . . . . Recycling Units 18 | . . . . . . . . 2 . . . . 5 . . . . 2 2 . . . 5 . 2 . . . . . . . . . . . Reject 8 | . . . . . . . . 1 . . . . 2 . . . . 1 1 . . . 2 . 1 . . . . . . . . . . . Recyclers 2 | . . . . . . . . . . . . . 1 . . . . . . . . . 1 . . . . . . . . . . . . . Mask 8 | . . . . . . . . 1 . . . . 2 . . . . 1 1 . . . 2 . 1 . . . . . . . . . . . Scanalyzers 1 | . . . . . . . . . . . . . . . . . . . . . . . . . . . . . . . 1 . . . . . Researchers 1 | . . . . . . . . . . . . . . . . . . . . . . . . . . . . . . . 1 . . . . . Garrison Access . | . . . . . . . . . . . . . . . . . . . . . . . . . . . . . . . . . . . . . Data Cores Recovered 7 | . . . . . . . . . . . . . . . . . . 2 1 . . . 2 . . . . . . . . 1 . 1 . . Used . | . . . . . . . . . . . . . . . . . . . . . . . . . . . . . . . . . . . . . Hacking Detections 135 | . 9 . 3 . . . 3 20 . . . . 23 . . . . 13 4 2 . 3 16 . 5 . . . . 10 5 3 3 4 7 2 Full Trace Events 25 | . 2 . . . . . . 3 . . . . 7 . . . . 3 . . . . 2 . 3 . . . . 4 . . . 1 . . Feedback Events . | . . . . . . . . . . . . . . . . . . . . . . . . . . . . . . . . . . . . . Feedback Blocked . | . . . . . . . . . . . . . . . . . . . . . . . . . . . . . . . . . . . . . Robot Schematics Acquired 19 | . 1 . . . . . . 1 . . 3 . 2 . . 6 . 3 . . . 1 1 . . . . . . . 1 . . . . . Robots Built 23 | . . . . . . . . 8 . . . . 3 . . . . 5 . . . . 1 . 3 . . . . 1 . . . . 2 . Authchips 5 | . . . . . . . . 2 . . . . 1 . . . . 1 . . . . 1 . . . . . . . . . . . . . Time 990 | . . . . . . . . 165 . . . . 169 . . . . 355 . . . . 93 . 112 . . . . 46 . . . . 50 . Total Robot Build Rating 120 | . . . . . . . . 26 . . . . 19 . . . . 32 . . . . 7 . 19 . . . . 7 . . . . 10 . Part Schematics Acquired 60 | . . . 1 . . . . 6 . . 15 . 5 . . 10 . 10 . . . . 5 . 1 . . 3 . 1 3 . . . . . Parts Built 26 | . . . . . . . . 5 . . . . 5 . . . . 6 . . . . 4 . 4 . . . . 2 . . . . . . Authchips 7 | . . . . . . . . 3 . . . . 1 . . . . 1 . . . . . . 2 . . . . . . . . . . . Time 1233 | . . . . . . . . 147 . . . . 406 . . . . 269 . . . . 202 . 142 . . . . 67 . . . . . . Total Part Build Rating 163 | . . . . . . . . 27 . . . . 28 . . . . 38 . . . . 28 . 30 . . . . 12 . . . . . . Parts Repaired 12 | . . . 1 . . . . 2 . . . . 2 . . . . 2 . . . . 1 . 1 . . . . . . . . . 1 2 Time 370 | . . . 32 . . . . 57 . . . . 84 . . . . 81 . . . . 28 . 20 . . . . . . . . . 26 42 Parts Recycled . | . . . . . . . . . . . . . . . . . . . . . . . . . . . . . . . . . . . . . Recycled Matter . | . . . . . . . . . . . . . . . . . . . . . . . . . . . . . . . . . . . . . Retrieved Matter . | . . . . . . . . . . . . . . . . . . . . . . . . . . . . . . . . . . . . . Retrieved Components 19 | . . . . . . . . . . . . . . . . . . . 9 . . . 10 . . . . . . . . . . . . . Parts Scanalyzed 6 | . . . 1 . . . . 1 . . . . 2 . . . . 1 . . . . 1 . . . . . . . . . . . . . Part Schematics Acquired 6 | . . . 1 . . . . 1 . . . . 2 . . . . 1 . . . . 1 . . . . . . . . . . . . . Parts Damaged 1 | . . . . . . . . . . . . . 1 . . . . . . . . . . . . . . . . . . . . . . . Bothacking | -11 -10 -10 -9 -9 -9 -8 -8 -7 -7 -7 -7 -6 -6 -6 -6 -6 -5 -5 -5 -5 -5 -5 -4 -4 -4 -4 -4 -4 -3 -3 -3 -3 -2 -2 -1 -1 ------------ Run | Yrd Mat Min Mat Min Exi Min Mat Fac Low Low Zio Pro Fac Low Low Dat Pro Fac Ext Cet Arc Hub Fac Was Fac Upp Upp Zhi Pro Res Qua Sec Res Tes Acc Com Used RIF Installer . | . . . . . . . . . . . . . . . . . . . . . . . . . . . . . . . . . . . . . Robots Hacked 2 | . . . . . . . . 1 . . . . . . . . . . 1 . . . . . . . . . . . . . . . . . Non-combat 2 | . . . . . . . . 1 . . . . . . . . . . 1 . . . . . . . . . . . . . . . . . Combat . | . . . . . . . . . . . . . . . . . . . . . . . . . . . . . . . . . . . . . Robot Hacks Applied 2 | . . . . . . . . 1 . . . . . . . . . . 1 . . . . . . . . . . . . . . . . . parse_system 1 | . . . . . . . . . . . . . . . . . . . 1 . . . . . . . . . . . . . . . . . find_chute 1 | . . . . . . . . 1 . . . . . . . . . . . . . . . . . . . . . . . . . . . . Relay Couplers Released . | . . . . . . . . . . . . . . . . . . . . . . . . . . . . . . . . . . . . . Fabnet Peak Effective % . | . . . . . . . . . . . . . . . . . . . . . . . . . . . . . . . . . . . . . Robots Rewired 28 | . . . . . . . . . 2 . . 2 . . 4 . . . 19 . . . 1 . . . . . . . . . . . . . Allies Hacked 3 | . . . . . . . . . . . . . 1 . . . . . . . . . . . . . . . . . . 2 . . . . Hacks Repelled . | . . . . . . . . . . . . . . . . . . . . . . . . . . . . . . . . . . . . . Allies | -11 -10 -10 -9 -9 -9 -8 -8 -7 -7 -7 -7 -6 -6 -6 -6 -6 -5 -5 -5 -5 -5 -5 -4 -4 -4 -4 -4 -4 -3 -3 -3 -3 -2 -2 -1 -1 -------- Run | Yrd Mat Min Mat Min Exi Min Mat Fac Low Low Zio Pro Fac Low Low Dat Pro Fac Ext Cet Arc Hub Fac Was Fac Upp Upp Zhi Pro Res Qua Sec Res Tes Acc Com Total Allies 242 | . . 2 . 1 . . . 17 2 . . 2 9 . 4 . . 5 28 5 . 1 6 20 3 . . . . 2 1 . 21 . 25 88 Largest Group 47 | . . 2 2 1 1 . . 12 10 7 7 7 11 5 9 9 9 12 28 32 30 27 7 20 3 3 3 3 3 4 4 2 13 . 8 47 Highest-Rated Group 1531 | . . 41 41 31 31 . . 222 159 127 128 155 357 194 312 312 312 469 1073 1531 1419 1140 204 748 130 127 127 127 127 213 201 90 186 . 114 1100 Highest-Rated Ally 234 | . . 31 31 31 31 . . 32 26 26 26 30 68 68 68 68 68 91 159 159 153 96 91 50 56 56 56 56 56 95 95 45 15 . 15 234 Total Orders 435 | . . . . . . . . 49 33 14 18 12 36 5 6 3 29 23 27 37 3 6 18 . 8 11 16 13 8 18 37 4 1 . . . STAY 200 | . . . . . . . . 21 17 6 6 6 17 1 2 1 17 12 11 14 1 3 11 . 4 6 6 4 4 8 20 2 . . . . ROAM 1 | . . . . . . . . . . . . . 1 . . . . . . . . . . . . . . . . . . . . . . . FOLLOW 134 | . . . . . . . . 18 12 2 3 4 11 1 2 1 6 6 9 17 1 3 3 . 2 2 4 4 3 5 13 2 . . . . GUARD 25 | . . . . . . . . . 1 2 1 2 3 1 2 1 2 1 . 4 . . . . . 1 1 1 1 1 . . . . . . AID 7 | . . . . . . . . . . . . . . . . . . 1 3 1 1 . 1 . . . . . . . . . . . . . DROP 19 | . . . . . . . . 2 1 1 2 . 1 . . . 2 1 1 . . . 1 . . . 2 1 . 2 2 . . . . . PICKUP 42 | . . . . . . . . 6 1 2 4 . 3 2 . . 2 2 3 1 . . 2 . 2 2 3 3 . 2 2 . . . . . COLLECT 4 | . . . . . . . . 2 1 1 . . . . . . . . . . . . . . . . . . . . . . . . . . EXPLORE 2 | . . . . . . . . . . . 1 . . . . . . . . . . . . . . . . . . . . . 1 . . . RETURN 1 | . . . . . . . . . . . 1 . . . . . . . . . . . . . . . . . . . . . . . . . Ally Attacks 1114 | . . 5 37 . . . . 17 41 . . 22 60 . . . 11 15 77 42 13 46 71 138 27 9 . . 9 6 . . 68 . 86 314 Total Damage 30073 | . . 84 486 . . . . 472 450 . . 251 884 . . . 280 605 1843 1567 695 1883 1922 6447 1092 367 . . 379 243 82 . 994 . 1513 7534 Kills 139 | . . 2 10 . . . . 5 3 . . 6 5 . . . 2 7 9 8 4 5 4 11 8 3 . . 4 1 . . 7 . 8 27 Allies Corrupted 17 | . . . . . . . . . . . . . . . . . . . . . . 7 . . . . . . . . . . 3 1 1 5 Allies Melted 3 | . . . . . . . . . . . . . . . . . . 1 1 . . . 1 . . . . . . . . . . . . . Intel | -11 -10 -10 -9 -9 -9 -8 -8 -7 -7 -7 -7 -6 -6 -6 -6 -6 -5 -5 -5 -5 -5 -5 -4 -4 -4 -4 -4 -4 -3 -3 -3 -3 -2 -2 -1 -1 ------- Run | Yrd Mat Min Mat Min Exi Min Mat Fac Low Low Zio Pro Fac Low Low Dat Pro Fac Ext Cet Arc Hub Fac Was Fac Upp Upp Zhi Pro Res Qua Sec Res Tes Acc Com Robot Analysis Total 8 | . . . . . . . . 1 . . . . . . . . . . . . . . 1 . . . . 4 . . 1 1 . . . . Derelict Logs Recovered 16 | . . 1 . 2 . . . . 1 2 1 2 . 2 . . . . . . . . . . . 2 3 . . . . . . . . . Drone Launches 12 | . . . . . . . . . . . 1 . . . . . . . . . . . . . . . . . . . . . 3 8 . . Drone Recoveries 1 | . . . . . . . . . . . 1 . . . . . . . . . . . . . . . . . . . . . . . . . Decoded 0b10 Intel 574 | . . . . . . . . . . . . . 150 . . . . 118 63 . . 39 99 8 49 . . . . 48 . . . . . . Items 574 | . . . . . . . . . . . . . 150 . . . . 118 63 . . 39 99 8 49 . . . . 48 . . . . . . Exploration | -11 -10 -10 -9 -9 -9 -8 -8 -7 -7 -7 -7 -6 -6 -6 -6 -6 -5 -5 -5 -5 -5 -5 -4 -4 -4 -4 -4 -4 -3 -3 -3 -3 -2 -2 -1 -1 ------------- Run | Yrd Mat Min Mat Min Exi Min Mat Fac Low Low Zio Pro Fac Low Low Dat Pro Fac Ext Cet Arc Hub Fac Was Fac Upp Upp Zhi Pro Res Qua Sec Res Tes Acc Com Turns Passed 33461 | 82 1380 1013 1225 361 146 244 192 2679 884 1106 767 716 3157 420 925 295 703 2438 2424 618 399 522 1884 125 1060 634 865 160 363 1024 950 1014 455 456 813 962 Spaces Moved 54854 | 42 763 591 770 709 406 484 349 4901 1582 2370 1418 1385 5890 829 1385 115 1039 4433 2845 855 248 879 3897 215 2085 1310 1563 340 643 2420 1641 1727 808 878 1702 1337 Core 7 | 5 . . . . . . . . 1 . . 1 . . . . . . . . . . . . . . . . . . . . . . . . Treads 1812 | 37 763 591 421 . . . . . . . . . . . . . . . . . . . . . . . . . . . . . . . . . Legs 5107 | . . . . . . . . . . . . . . . . . . . . . . . . . . . . . . . . 382 808 878 1702 1337 Wheels . | . . . . . . . . . . . . . . . . . . . . . . . . . . . . . . . . . . . . . Hover 211 | . . . 211 . . . . . . . . . . . . . . . . . . . . . . . . . . . . . . . . . Flight 47717 | . . . 138 709 406 484 349 4901 1581 2370 1418 1384 5890 829 1385 115 1039 4433 2845 855 248 879 3897 215 2085 1310 1563 340 643 2420 1641 1345 . . . . Fastest Speed 20 | 50 160 160 31 31 31 31 27 21 21 21 21 21 21 24 24 24 24 24 25 25 25 25 20 22 22 22 22 22 22 22 22 22 30 30 30 30 Average Speed 28 | 146 160 160 107 31 31 31 28 26 21 21 21 21 22 24 24 24 24 24 25 25 25 25 22 22 22 22 22 22 22 22 22 24 30 30 30 30 Slowest Speed 280 | 160 160 160 280 31 31 31 31 27 150 21 21 150 27 24 24 24 24 25 96 25 25 25 25 22 22 22 22 90 22 22 22 87 30 30 30 30 Overloaded Moves . | . . . . . . . . . . . . . . . . . . . . . . . . . . . . . . . . . . . . . Propulsion Burnouts . | . . . . . . . . . . . . . . . . . . . . . . . . . . . . . . . . . . . . . Robots Hopped 123 | . . . . 5 . 1 2 12 . . . . 4 . . . . 26 6 1 . 10 9 . 7 . . . . 9 18 6 . . . 7 Cave-ins Triggered 1 | . . . . . . . . . . . . . . . . . . 1 . . . . . . . . . . . . . . . . . . Teleports 1 | . . . . . . . . . . . . . . . . . . . . . . . . . . . . . . . . 1 . . . . Exploration Rate (%) 71 | 4 96 98 81 95 84 75 33 79 98 97 87 96 84 85 76 75 68 74 90 89 90 63 64 86 20 90 93 60 77 51 52 78 25 60 37 37 Regions Visited 36 Branch Regions 24 Pre-discovered Areas 12 | . . . . . 1 . . . . 2 . . . . . 1 1 . . . . . . . . 1 3 3 . . . . . . . . Known Exits Taken 30 | . . . . 1 1 1 1 1 1 1 1 1 1 1 1 1 1 1 1 1 1 1 . . 1 1 1 1 1 1 1 1 1 1 1 . Unknown Exits Taken 4 | 1 1 1 1 . . . . . . . . . . . . . . . . . . . . . . . . . . . . . . . . . Scrap Searched 38 | . . 1 . 1 . 2 . . 3 4 2 4 . 2 6 . 2 . . . . . . . . 3 5 . 3 . . . . . . . Spaces Dug 296 | . . . . 2 . . 4 23 2 1 . . 47 . . . 3 36 . 16 2 2 20 . 11 . . . 3 11 1 10 23 32 41 6 Terrain Destroyed 1419 | . . . 37 19 . 81 28 134 104 64 . 176 200 33 37 . 21 36 5 16 2 2 53 . 11 67 9 . 3 11 1 22 35 38 91 83 Melee 214 | . . . . 2 . . 4 23 2 1 . . 33 . . . 3 36 . 16 2 2 20 . 11 . . . 3 11 1 8 11 7 18 . Projectile 202 | . . . . . . . . . . . . . 4 . . . . . . . . . . . . . . . . . . 14 24 31 46 83 AOE 1003 | . . . 37 17 . 81 24 111 102 63 . 176 163 33 37 . 18 . 5 . . . 33 . . 67 9 . . . . . . . 27 . Terrain Rammed . | . . . . . . . . . . . . . . . . . . . . . . . . . . . . . . . . . . . . . Walls Destroyed . | . . . . . . . . . . . . . . . . . . . . . . . . . . . . . . . . . . . . . Machines Disabled . | . . . . . . . . . . . . . . . . . . . . . . . . . . . . . . . . . . . . . Actions | -11 -10 -10 -9 -9 -9 -8 -8 -7 -7 -7 -7 -6 -6 -6 -6 -6 -5 -5 -5 -5 -5 -5 -4 -4 -4 -4 -4 -4 -3 -3 -3 -3 -2 -2 -1 -1 --------- Run | Yrd Mat Min Mat Min Exi Min Mat Fac Low Low Zio Pro Fac Low Low Dat Pro Fac Ext Cet Arc Hub Fac Was Fac Upp Upp Zhi Pro Res Qua Sec Res Tes Acc Com Total 69532 | 52 849 632 1010 809 425 563 402 6017 2069 2911 1887 1740 7237 1039 1931 381 1468 5510 4468 1205 575 1115 4653 290 2557 1634 2054 425 827 2831 2152 2115 989 1030 1942 1738 Wait 10793 | . 37 7 54 76 20 66 14 833 359 434 403 270 864 188 494 266 365 733 1410 292 315 170 463 69 323 289 424 61 143 351 452 140 109 63 133 103 Move 54596 | 41 762 590 769 700 405 481 345 4877 1581 2369 1417 1384 5881 828 1384 114 1038 4386 2833 852 247 859 3880 214 2073 1309 1562 339 642 2402 1607 1714 807 877 1701 1326 Hop 99 | . . . . 3 . 1 1 11 . . . . 4 . . . . 20 5 1 . 9 8 . 4 . . . . 8 15 5 . . . 4 Pick Up 233 | . 1 1 6 1 . . 4 13 12 13 23 2 10 3 . . 15 22 1 7 . . 6 . 10 4 10 6 . 5 4 15 3 8 9 19 Fast Attach 195 | 8 3 1 26 . . . 2 23 1 . 3 . 17 3 2 . . 5 2 . . 1 9 . 5 . . 7 . 5 5 25 14 11 8 9 Attach 42 | . . . 1 . . . . 5 . 1 . . 2 . . . 1 5 1 . . . 1 . 2 . . . . 2 . 4 5 4 2 6 Detach 39 | . 1 . 1 . . . . 3 . 1 1 . 3 . . . . 4 2 . . . 3 . 1 . . . . 1 . . 9 4 3 2 Swap 446 | . 1 . 6 5 . 5 4 32 15 13 8 16 63 4 15 1 5 34 26 6 . 3 47 2 22 10 14 . 10 7 8 14 7 15 12 16 Drop 351 | . 3 . 29 2 . . 4 35 11 12 26 2 26 5 3 . 14 20 . 7 . . 17 . 9 4 10 12 1 6 8 29 9 14 12 21 Fire 399 | 3 37 14 52 2 . 9 3 19 8 5 . 20 24 2 4 . 4 . 2 . . 1 1 . . 6 1 . . . . 13 8 18 20 123 Melee 1154 | . . . 25 16 . 1 18 131 27 36 4 22 151 3 26 . 14 109 73 25 5 26 128 . 66 6 15 . 17 41 32 91 11 10 25 . Ram . | . . . . . . . . . . . . . . . . . . . . . . . . . . . . . . . . . . . . . Kick 2 | . . . . . . . . . . . . . . . . . . . . . . . . . . . . . . . . . . . 2 . Crush . | . . . . . . . . . . . . . . . . . . . . . . . . . . . . . . . . . . . . . Escape Stasis 66 | . . . . . . . . . . . . . . . . . . . 49 . . . . . . . . . . . . 14 . 2 . 1 Rewire 17 | . . . . . . . . . 8 . . 9 . . . . . . . . . . . . . . . . . . . . . . . . Trap 146 | . . . . . . . . . 3 6 . . 27 . . . . 72 19 . . 9 4 . . . 2 . . . 4 . . . . . Miscellaneous 954 | . 4 19 41 4 . . 7 35 44 21 2 15 165 3 3 . 12 100 45 15 8 37 86 5 42 6 16 . 14 3 17 51 7 4 15 108 Route ------- -11/Scrapyard -10/Materials (discovered 4 exits: *Mat x3 / *Min) -10/Mines (discovered 2 exits: *Mat x2) -9/Materials (discovered 3 exits: *Mat x2 / [*Min]) -9/Mines (discovered 4 exits: *Mat x2 / *Exi / *Zio) -9/Exiles (discovered 2 exits: *Min x2) -8/Mines -8/Materials (discovered 2 exits: *Fac / Sto) -7/Factory (discovered 4 exits: *Fac x2 / *Low x2) -7/Lower Caves -7/Lower Caves (discovered 2 exits: *Fac / *Zio) -7/Zion -6/Proximity Caves -6/Factory (discovered 6 exits: *Fac x4 / *Low x2) -6/Lower Caves -6/Lower Caves (discovered 2 exits: *Fac / *Dat) -6/Data Miner -5/Proximity Caves -5/Factory (discovered 7 exits: *Fac x3 / *Upp x2 / *Ext x2) -5/Extension (discovered 3 exits: *Fac x2 / *Cet) -5/Cetus (discovered 2 exits: *Fac / *Arc) -5/Archives (discovered 3 exits: *Fac / *Hub x2) -5/Hub_04(d) (discovered 3 exits: *Fac x3) -4/Factory (discovered 6 exits: Res x4 / *Upp x2) -4/Waste -4/Factory (discovered 4 exits: *Res x2 / *Upp x2) -4/Upper Caves -4/Upper Caves (discovered 2 exits: *Res / *Zhi) -4/Zhirov -3/Proximity Caves -3/Research (discovered 6 exits: *Res x3 / *Arm / *Qua x2) -3/Quarantine (discovered 2 exits: *Res / *Sec) -3/Section 7 -2/Research (discovered 2 exits: *Tes x2) -2/Testing -1/Access -1/Command History --------- Turn | Location | Event 1 | -11/Scrapyard | Upgraded with Propulsion slot (x1) 1 | -11/Scrapyard | Upgraded with Utility slot (x1) 1 | -11/Scrapyard | Upgraded with Weapon slot (x1) 26 | -11/Scrapyard | Upgraded with Weapon slot (x1) 34 | -11/Scrapyard | Discovered new exit (range 15) 83 | -11/Scrapyard | Entered Materials 301 | -10/Materials | Build established: Gunner 687 | -10/Materials | Discovered new exit (range 4) 766 | -10/Materials | Discovered new exit (range 15) 1082 | -10/Materials | Discovered new exit (range 4) 1325 | -10/Materials | Discovered new exit (range 16) 1463 | -10/Materials | Entered Mines 1465 | -10/Mines | Reached level 2 1686 | -10/Mines | Upgraded with Utility slot (x1) 1793 | -10/Mines | Learned Materials stockpile data 1885 | -10/Mines | A weapon hastily lodged in a ceiling crevice suddenly fell to the ground 1910 | -10/Mines | Discovered new exit (range 7) 2417 | -10/Mines | Discovered new exit (range 14) 2476 | -10/Mines | Entered Materials 2476 | -9/Materials | Accompanied by 2 allies 2478 | -9/Materials | Reached level 3 2481 | -9/Materials | Led the pair of lost Derelicts to an unsafe place 2584 | -9/Materials | Upgraded with Utility slot (x1) 2688 | -9/Materials | Reached level 4 2888 | -9/Materials | Repaired Beam Rifle 3016 | -9/Materials | Discovered new exit (range 10) 3149 | -9/Materials | Reached level 5 3256 | -9/Materials | Discovered new exit (range 13) 3315 | -9/Materials | Reached level 6 3336 | -9/Materials | Build established: Scavenger-Tank 3402 | -9/Materials | Upgraded with Propulsion slot (x2) 3424 | -9/Materials | Upgraded with Weapon slot (x1) 3483 | -9/Materials | Discovered new exit (range 16) 3676 | -9/Materials | First assault squad dispatched 3701 | -9/Materials | Entered Mines 3703 | -9/Mines | Reached level 7 3703 | -9/Mines | Joined a pair of Derelicts in attacking an 0b10 outpost 3744 | -9/Mines | Assembled infested the area 3746 | -9/Mines | Learned Materials emergency access door positions 3766 | -9/Mines | Learned 4 Materials zone layouts 3907 | -9/Mines | Build established: Sprinter 3958 | -9/Mines | Discovered new exit (range 13) 3967 | -9/Mines | Destroyed YI-UF0 3971 | -9/Mines | Discovered new exit (range 11) 3981 | -9/Mines | Identified exit to Materials 4019 | -9/Mines | A Derelict revealed a hidden shortcut to a safe place 4023 | -9/Mines | Identified exit to Zion 4039 | -9/Mines | Received a Mining Laser from a helpful Derelict 4046 | -9/Mines | Deemed a non-threat by the Exiles lab entrance 4046 | -9/Mines | Discovered new exit (range 5) 4047 | -9/Mines | Identified exit to Exiles 4062 | -9/Mines | Entered Exiles 4062 | -9/Exiles | Accompanied by 1 ally 4069 | -9/Exiles | Discovered new exit (range 14) 4073 | -9/Exiles | Identified exit to Mines 4079 | -9/Exiles | Met 8R-AWN 4084 | -9/Exiles | Met EX-HEX 4094 | -9/Exiles | Met EX-BIN 4104 | -9/Exiles | Met EX-DEC 4107 | -9/Exiles | Learned location of Zion (-7) 4120 | -9/Exiles | Visited The Gauntlet 4186 | -9/Exiles | Discovered exit to Mines (range 12) 4208 | -9/Exiles | Entered Mines 4344 | -8/Mines | Reached level 8 4392 | -8/Mines | Destroyed 9 combat bots 4447 | -8/Mines | Discovered exit to Materials (range 12) 4452 | -8/Mines | Entered Materials 4454 | -8/Materials | Reached level 9 4454 | -8/Materials | Upgraded with Utility slot (x1) 4516 | -8/Materials | Upgraded with Propulsion slot (x1) 4532 | -8/Materials | Identified exit to Storage 4546 | -8/Materials | Garrison activated, responded to threat 4594 | -8/Materials | Reached level 10 4624 | -8/Materials | Discovered new exit (range 14) 4640 | -8/Materials | Identified exit to Factory 4644 | -8/Materials | Entered Factory 4646 | -7/Factory | Reached level 11 4661 | -7/Factory | Discovered new exit (range 14) 4665 | -7/Factory | Identified exit to Factory 4909 | -7/Factory | Reached level 12 4942 | -7/Factory | Discovered exit to Factory (range 17) 4959 | -7/Factory | Core integrity fell below 50% 4982 | -7/Factory | Build established: Hacker-Scout 5352 | -7/Factory | Reached level 13 5368 | -7/Factory | Upgraded with Utility slot (x1) 5701 | -7/Factory | Repaired Imp. Light Armor Plating 5722 | -7/Factory | Central database locked down 5775 | -7/Factory | Repaired Imp. Terrain Scanner 5830 | -7/Factory | Identified exit to Lower Caves 5838 | -7/Factory | Reached level 14 5961 | -7/Factory | Fabricated Enh. Gauss Cannon (x2) 6043 | -7/Factory | Fabricated A-02 Transporter (x1) 6518 | -7/Factory | Fabricated Phase Shifter? 6528 | -7/Factory | Fabricated S-27 Virus? 6859 | -7/Factory | Fabricated G-47 Trooper? 7078 | -7/Factory | Fabricated Lgt. Fission Core (x2) 7102 | -7/Factory | Build established: Commander-Scout 7147 | -7/Factory | Reached level 15 7219 | -7/Factory | Destroyed 7 combat bots 7240 | -7/Factory | Upgraded with Propulsion slot (x1) 7323 | -7/Factory | Entered Lower Caves 7323 | -7/Lower Caves | Accompanied by 10 allies 7345 | -7/Lower Caves | Encountered a Warlord checkpoint 7370 | -7/Lower Caves | Lost 3 allies 7442 | -7/Lower Caves | Attracted the attention of an 0b10 checkpoint 7522 | -7/Lower Caves | Learned Factory stockpile data 7610 | -7/Lower Caves | Ambushed by wild Derelicts 7744 | -7/Lower Caves | Discovered new exit (range 12) 7758 | -7/Lower Caves | Identified exit to Lower Caves 7801 | -7/Lower Caves | Build established: Hacker-Scout 8150 | -7/Lower Caves | Reached level 16 8207 | -7/Lower Caves | Entered another Lower Caves area 8207 | -7/Lower Caves | Accompanied by 7 allies 8252 | -7/Lower Caves | Attacked by a delusional Derelict stockpiling parts 8296 | -7/Lower Caves | Discovered exit to Factory (range 14) 8410 | -7/Lower Caves | Spotted B-75 Beast 8479 | -7/Lower Caves | Build established: Commander-Scout 8792 | -7/Lower Caves | Encountered a Warlord checkpoint 8798 | -7/Lower Caves | Discovered exit to Zion (range 5) 8947 | -7/Lower Caves | Destroyed B-75 Beast 9313 | -7/Lower Caves | Entered Zion 9313 | -7/Zion | Accompanied by 7 allies 9318 | -7/Zion | Given the Hacking Drone Bay 9327 | -7/Zion | Discovered new exit (range 15) 9330 | -7/Zion | Identified exit to Proximity Caves 9445 | -7/Zion | Found Prototype Device 9476 | -7/Zion | Found Prototype Special Weapon 9477 | -7/Zion | Found Prototype Special Weapon 9478 | -7/Zion | Found Prototype Special Weapon 9480 | -7/Zion | Found Prototype Special Weapon 9544 | -7/Zion | Learned Factory non-interactive machine intel 9659 | -7/Zion | Identified Hacking Drone Bay 9877 | -7/Zion | Identified RU-N14's Throwing Claymores 10080 | -7/Zion | Entered Proximity Caves 10080 | -6/Proximity Caves | Accompanied by 7 allies 10082 | -6/Proximity Caves | Reached level 17 10083 | -6/Proximity Caves | Spotter reported a threat 10140 | -6/Proximity Caves | Attracted the attention of an 0b10 checkpoint 10153 | -6/Proximity Caves | Learned location of 1 exit from Factory 10183 | -6/Proximity Caves | Learned Factory terminal intel 10298 | -6/Proximity Caves | Reached level 18 10319 | -6/Proximity Caves | Destroyed 7 combat bots 10396 | -6/Proximity Caves | Attracted the attention of an 0b10 outpost 10456 | -6/Proximity Caves | Destroyed 11 combat bots 10683 | -6/Proximity Caves | Discovered exit to Factory (range 10) 10796 | -6/Proximity Caves | Entered Factory 10796 | -6/Factory | Accompanied by 7 allies 10797 | -6/Factory | Identified exit to Factory 10798 | -6/Factory | Reached level 19 10799 | -6/Factory | Loaded intel: 219 non-interactive machine locations 10800 | -6/Factory | Loaded intel: 26 terminal locations 10860 | -6/Factory | Upgraded with Utility slot (x1) 11063 | -6/Factory | Discovered exit to Factory (range 19) 11225 | -6/Factory | Core integrity fell below 50% 11236 | -6/Factory | Build established: Hacker-Scout 11491 | -6/Factory | Fabricated X-77 Beamer (x2) 11620 | -6/Factory | Discovered new exit (range 17) 11625 | -6/Factory | Identified exit to Lower Caves 11800 | -6/Factory | Repaired Lyr. Light Armor Plating 11872 | -6/Factory | Reached level 20 12096 | -6/Factory | Fabricated Helical Railgun (x1) 12298 | -6/Factory | Fabricated Biomechanical Wings? 12432 | -6/Factory | Spotted B-75 Beast 12466 | -6/Factory | Discovered exit to Factory (range 18) 12562 | -6/Factory | Repaired Lgt. Antimatter Reactor 12742 | -6/Factory | Discovered exit to Factory (range 6) 12860 | -6/Factory | Fabricated Biomechanical Wings (x1) 12997 | -6/Factory | Fabricated F-cell Engine (x1) 13171 | -6/Factory | Discovered exit to Lower Caves (range 13) 13246 | -6/Factory | First assault squad dispatched 13293 | -6/Factory | Fabricated A-15 Conveyor (x1) 13347 | -6/Factory | Allied Derelicts emerged from ambush trap array 13757 | -6/Factory | Lost 5 allies 13850 | -6/Factory | Fabricated Biomechanical Wings (x1) 13953 | -6/Factory | Entered Lower Caves 13953 | -6/Lower Caves | Accompanied by 5 allies 13975 | -6/Lower Caves | Learned Factory terminal intel 14245 | -6/Lower Caves | Discovered new exit (range 9) 14246 | -6/Lower Caves | Learned Factory stockpile data 14247 | -6/Lower Caves | Identified exit to Lower Caves 14373 | -6/Lower Caves | Entered another Lower Caves area 14373 | -6/Lower Caves | Accompanied by 5 allies 14374 | -6/Lower Caves | Encountered a Warlord checkpoint 14375 | -6/Lower Caves | Reached level 21 14417 | -6/Lower Caves | Discovered exit to Factory (range 18) 14431 | -6/Lower Caves | Attacked by a delusional Derelict stockpiling Unaware 14638 | -6/Lower Caves | Discovered new exit (range 7) 14638 | -6/Lower Caves | Spotted B-75 Beast 14640 | -6/Lower Caves | Identified exit to Data Miner 14733 | -6/Lower Caves | Build established: Commander-Scout 14830 | -6/Lower Caves | Attracted the attention of an 0b10 checkpoint 15231 | -6/Lower Caves | Destroyed B-75 Beast 15298 | -6/Lower Caves | Entered Data Miner 15298 | -6/Data Miner | Accompanied by 9 allies 15298 | -6/Data Miner | Discovered new exit (range 6) 15301 | -6/Data Miner | Identified exit to Proximity Caves 15304 | -6/Data Miner | Met Data Miner 15310 | -6/Data Miner | Learned location of Section 7 (-3) 15310 | -6/Data Miner | Acquired the access code to Warlord's prototype stash 15395 | -6/Data Miner | Received God Mode back door access code from Data Miner 15593 | -6/Data Miner | Entered Proximity Caves 15593 | -5/Proximity Caves | Accompanied by 9 allies 15996 | -5/Proximity Caves | Upgraded with Weapon slot (x1) 16077 | -5/Proximity Caves | Discovered exit to Factory (range 16) 16267 | -5/Proximity Caves | Learned location of Extension (-5) 16267 | -5/Proximity Caves | Learned Factory trap positions 16267 | -5/Proximity Caves | Learned Factory stockpile data 16267 | -5/Proximity Caves | Learned Factory garrison access intel 16296 | -5/Proximity Caves | Entered Factory 16296 | -5/Factory | Accompanied by 9 allies 16297 | -5/Factory | Loaded intel: 93 trap records 16298 | -5/Factory | Reached level 22 16299 | -5/Factory | Loaded intel: 27 terminal locations 16300 | -5/Factory | Loaded intel: 3 garrison access locations 16634 | -5/Factory | Repaired Imp. Plasma Cutter? 16751 | -5/Factory | Discovered new exit (range 17) 16779 | -5/Factory | Identified exit to Upper Caves 16958 | -5/Factory | Discovered new exit (range 20) 16978 | -5/Factory | Identified exit to Factory 17003 | -5/Factory | Fabricated Q-thruster (x2) 17019 | -5/Factory | Discovered new exit (range 7) 17024 | -5/Factory | Build established: Wizard-Ninja 17102 | -5/Factory | Discovered exit to Upper Caves (range 6) 17108 | -5/Factory | Identified exit to Extension 17412 | -5/Factory | Crushed by falling debris 17531 | -5/Factory | Build established: Hacker-Ninja 17550 | -5/Factory | Repaired Imp. Reaction Control System 17601 | -5/Factory | Fabricated B-60 Warrior (x3) 17624 | -5/Factory | Fabricated Adv. System Restoration Module (x2) 17726 | -5/Factory | Reached level 23 17751 | -5/Factory | Fabricated Lgt. Regenerative Plating (x1) 17774 | -5/Factory | Upgraded with Utility slot (x1) 17785 | -5/Factory | Discovered exit to Factory (range 17) 17890 | -5/Factory | Fabricated A-27 Freighter (x1) 18206 | -5/Factory | Fabricated M-36 Artificer (x1) 18480 | -5/Factory | Discovered exit to Factory (range 17) 18486 | -5/Factory | Build established: Commander-Ninja 18599 | -5/Factory | Fabricated Prc. Rocket Launcher (x1) 18734 | -5/Factory | Entered Extension 18734 | -5/Extension | Accompanied by 12 allies 18873 | -5/Extension | Rescued a captive Derelict 18873 | -5/Extension | Rescued a captive Derelict 18929 | -5/Extension | Rescued a captive Derelict 18930 | -5/Extension | Rescued a captive Derelict 19182 | -5/Extension | Spotted B-75 Beast 19522 | -5/Extension | Spotted B-75 Beast 19787 | -5/Extension | Discovered exit to Factory (range 4) 20743 | -5/Extension | Destroyed B-75 Beast 20865 | -5/Extension | Rescued a captive Derelict 20873 | -5/Extension | Rescued a captive Derelict 20908 | -5/Extension | Reached level 24 20952 | -5/Extension | Rescued a captive Derelict 20952 | -5/Extension | Rescued a captive Derelict 20954 | -5/Extension | Lost 5 allies 20968 | -5/Extension | Rescued A7 21039 | -5/Extension | Discovered new exit (range 20) 21042 | -5/Extension | Discovered exit to Factory (range 10) 21044 | -5/Extension | Identified exit to Cetus 21154 | -5/Extension | Build established: Commander-Scout 21158 | -5/Extension | Entered Cetus 21158 | -5/Cetus | Accompanied by 28 allies (A7) 21162 | -5/Cetus | Spotted Cetus Guard 21162 | -5/Cetus | Spotted Cetus Guard 21163 | -5/Cetus | Acquired a Cetus Manufacturing Module code from A7 21163 | -5/Cetus | Spotted Cetus Guard 21164 | -5/Cetus | Spotted Cetus Guard 21166 | -5/Cetus | Destroyed Cetus Guard 21172 | -5/Cetus | Allies destroyed Cetus Guard 21175 | -5/Cetus | Allies destroyed Cetus Guard 21177 | -5/Cetus | Allies destroyed Cetus Guard 21298 | -5/Cetus | Escorted A7 to Cetus Mainframe 21306 | -5/Cetus | Started Cetus Manufacturing Module 21315 | -5/Cetus | Discovered new exit (range 17) 21319 | -5/Cetus | Identified exit to Archives 21331 | -5/Cetus | Manufactured an Enhanced Grunt 21356 | -5/Cetus | Manufactured an Enhanced Grunt 21381 | -5/Cetus | Manufactured an Enhanced Grunt 21406 | -5/Cetus | Manufactured an Enhanced Grunt 21431 | -5/Cetus | Manufactured an Enhanced Grunt 21485 | -5/Cetus | Spotted Cetus Guard 21485 | -5/Cetus | Spotted Cetus Guard 21485 | -5/Cetus | Spotted Cetus Guard 21485 | -5/Cetus | Spotted Cetus Guard 21498 | -5/Cetus | Discovered exit to Factory (range 18) 21502 | -5/Cetus | Destroyed Cetus Guard 21505 | -5/Cetus | Allies destroyed Cetus Guard 21507 | -5/Cetus | Allies destroyed Cetus Guard 21507 | -5/Cetus | Allies destroyed Cetus Guard 21676 | -5/Cetus | Met Revision 17 21776 | -5/Cetus | Entered Archives 21776 | -5/Archives | Accompanied by 31 allies (A7) 21781 | -5/Archives | Received a hacking code to weaken MAIN.C 21784 | -5/Archives | Discovered new exit (range 18) 21795 | -5/Archives | Discovered exit to Factory (range 14) 21805 | -5/Archives | Unable to access archive contents 21808 | -5/Archives | Discovered new exit (range 18) 21813 | -5/Archives | Identified exit to Hub_04(d) 21839 | -5/Archives | Unable to access archive contents 22175 | -5/Archives | Entered Hub_04(d) 22175 | -5/Hub_04(d) | Accompanied by 28 allies 22283 | -5/Hub_04(d) | Discovered exit to Factory (range 20) 22405 | -5/Hub_04(d) | Network Hub disabled 22411 | -5/Hub_04(d) | Spotted Lightning 22436 | -5/Hub_04(d) | Network Hub disabled 22474 | -5/Hub_04(d) | Spotted Lightning 22474 | -5/Hub_04(d) | Spotted Lightning 22496 | -5/Hub_04(d) | Build established: Commander-Ninja 22508 | -5/Hub_04(d) | Discovered exit to Factory (range 14) 22548 | -5/Hub_04(d) | Discovered exit to Factory (range 18) 22558 | -5/Hub_04(d) | Spotted Lightning 22558 | -5/Hub_04(d) | Spotted Lightning 22569 | -5/Hub_04(d) | Network Hub disabled 22635 | -5/Hub_04(d) | Core integrity fell below 50% 22662 | -5/Hub_04(d) | Spotted Lightning 22671 | -5/Hub_04(d) | Allies destroyed Lightning 22671 | -5/Hub_04(d) | Destroyed Lightning 22673 | -5/Hub_04(d) | Allies destroyed Lightning 22697 | -5/Hub_04(d) | Entered Factory 22697 | -4/Factory | Accompanied by 6 allies 22699 | -4/Factory | Reached level 25 22722 | -4/Factory | Lost 14 allies 22904 | -4/Factory | Upgraded with Power slot (x1) 22923 | -4/Factory | Repaired Imp. Plasma Cutter 22947 | -4/Factory | Spotted B-86 Titan 23001 | -4/Factory | Build established: Hacker-Ninja 23059 | -4/Factory | Destroyed B-86 Titan 23105 | -4/Factory | Identified exit to Upper Caves 23107 | -4/Factory | Identified exit to Research 23154 | -4/Factory | Reached level 26 23373 | -4/Factory | Upgraded with Propulsion slot (x1) 23516 | -4/Factory | Spotted B-86 Titan 23566 | -4/Factory | P-70 Sage assimilated allied Administrator 7a 23861 | -4/Factory | Fabricated Lgt. Quantum Reactor? 24026 | -4/Factory | Fabricated A-27 Freighter? 24029 | -4/Factory | Build established: Hacker-Scout 24206 | -4/Factory | Fabricated Biomechanical Wings? 24480 | -4/Factory | Fabricated Biomechanical Wings? 24581 | -4/Factory | Sucked down chute 24581 | -4/Factory | Entered Waste 24582 | -4/Waste | Met a frightened Derelict 24619 | -4/Waste | Spotted C-40 Crusher 24628 | -4/Waste | Warlord forces began an assault 24641 | -4/Waste | Spotted C-40 Crusher 24659 | -4/Waste | Allies destroyed C-40 Crusher 24667 | -4/Waste | Spotted C-40 Crusher 24674 | -4/Waste | Spotted C-40 Crusher 24680 | -4/Waste | Allies destroyed C-40 Crusher 24692 | -4/Waste | Allies destroyed C-40 Crusher 24696 | -4/Waste | Spotted C-40 Crusher 24701 | -4/Waste | Spotted C-40 Crusher 24703 | -4/Waste | Discovered new exit (range 12) 24705 | -4/Waste | Identified exit to Factory 24706 | -4/Waste | Entered Factory 24709 | -4/Factory | Lost 7 allies 24753 | -4/Factory | Discovered exit to Research (range 13) 24799 | -4/Factory | Discovered exit to Research (range 18) 24906 | -4/Factory | Reached level 27 24956 | -4/Factory | First assault squad dispatched 24995 | -4/Factory | Fabricated R-10 Processor? 25337 | -4/Factory | Repaired Adv. Reaction Control System 25345 | -4/Factory | Fabricated Imp. Phase Shifter? 25350 | -4/Factory | Fabricated H-77 Assassin? 25558 | -4/Factory | Fabricated Imp. Armor Integrity Analyzer (x1) 25676 | -4/Factory | Fabricated Adv. Force Field (x2) 25766 | -4/Factory | Entered Upper Caves 25766 | -4/Upper Caves | Accompanied by 3 allies 25832 | -4/Upper Caves | Learned Armory trap positions 25832 | -4/Upper Caves | Learned Factory emergency access door positions 25832 | -4/Upper Caves | Learned Factory security intel 25832 | -4/Upper Caves | Learned Research garrison access intel 25832 | -4/Upper Caves | Learned Armory garrison access intel 26089 | -4/Upper Caves | Attracted the attention of an 0b10 checkpoint 26146 | -4/Upper Caves | Discovered new exit (range 20) 26167 | -4/Upper Caves | Learned location of Testing (-2) 26172 | -4/Upper Caves | Learned Research garrison access intel 26173 | -4/Upper Caves | Identified exit to Upper Caves 26291 | -4/Upper Caves | Found Alien Artifact 26400 | -4/Upper Caves | Entered another Upper Caves area 26400 | -4/Upper Caves | Accompanied by 3 allies 26455 | -4/Upper Caves | Discovered exit to Research (range 10) 26972 | -4/Upper Caves | Spotted B-86 Titan 27091 | -4/Upper Caves | Destroyed B-86 Titan 27182 | -4/Upper Caves | Discovered new exit (range 6) 27182 | -4/Upper Caves | Learned location of Quarantine (-3) 27183 | -4/Upper Caves | Identified exit to Zhirov 27265 | -4/Upper Caves | Entered Zhirov 27265 | -4/Zhirov | Accompanied by 3 allies 27265 | -4/Zhirov | Discovered new exit (range 3) 27266 | -4/Zhirov | Identified exit to Proximity Caves 27270 | -4/Zhirov | Met Zhirov 27275 | -4/Zhirov | Learned location of Command (-1) 27276 | -4/Zhirov | Zhirov requested help retrieving the SGEMP Prototype 27281 | -4/Zhirov | Found Alien Artifact 27281 | -4/Zhirov | Identified Integrated Reactor 27281 | -4/Zhirov | Installed Integrated Reactor, increased core energy generation (+10) 27331 | -4/Zhirov | Found Alien Artifact 27425 | -4/Zhirov | Entered Proximity Caves 27425 | -3/Proximity Caves | Accompanied by 3 allies 27427 | -3/Proximity Caves | Reached level 28 27449 | -3/Proximity Caves | Attracted the attention of an 0b10 checkpoint 27713 | -3/Proximity Caves | Discovered exit to Research (range 8) 27788 | -3/Proximity Caves | Entered Research 27788 | -3/Research | Accompanied by 3 allies 27789 | -3/Research | Loaded intel: 3 garrison access locations 27792 | -3/Research | Discovered new exit (range 19) 27794 | -3/Research | Reached level 29 27794 | -3/Research | Identified exit to Research 27812 | -3/Research | Upgraded with Utility slot (x1) 27988 | -3/Research | Revision forces began assault on 0b10 28099 | -3/Research | Build established: Machinist-Ninja 28142 | -3/Research | Discovered new exit (range 18) 28171 | -3/Research | Fabricated Lrn. Terrain Scanner (x1) 28183 | -3/Research | Identified exit to Armory 28195 | -3/Research | Found Exp. Signal Interpreter 28270 | -3/Research | Found Fusion Bomb Launcher 28272 | -3/Research | Identified exit to Quarantine 28277 | -3/Research | Met up with Revision 17++ 28419 | -3/Research | Fabricated Exp. Propulsion Shielding? 28488 | -3/Research | Research terminal network offline 28589 | -3/Research | Fabricated A-27 Freighter? 28812 | -3/Research | Entered Quarantine 28812 | -3/Quarantine | Accompanied by 3 allies 28952 | -3/Quarantine | Found Alien Artifact 28984 | -3/Quarantine | Discovered exit to Research (range 15) 28992 | -3/Quarantine | Found Alien Artifact 28992 | -3/Quarantine | Identified Core Reset Matrix 28992 | -3/Quarantine | Identified Subatomic Replicator 28992 | -3/Quarantine | Reached level 30 28992 | -3/Quarantine | Used Core Reset Matrix 28996 | -3/Quarantine | Detected hypermatrix surge 28996 | -3/Quarantine | Sensed 6 artifacts in vicinity 28996 | -3/Quarantine | Discovered exit to Research (range 9) 29566 | -3/Quarantine | Spotted Fortress 29726 | -3/Quarantine | Discovered new exit (range 6) 29727 | -3/Quarantine | Identified exit to Section 7 29762 | -3/Quarantine | Entered Section 7 29762 | -3/Section 7 | Accompanied by 2 allies 29763 | -3/Section 7 | Sensed 20 artifacts in vicinity 29782 | -3/Section 7 | Found Integrated Mediator 29782 | -3/Section 7 | Installed Integrated Mediator, increased core attachment efficiency 30204 | -3/Section 7 | Initialized slip node 30244 | -3/Section 7 | Spotted S7 Guard 30249 | -3/Section 7 | Destroyed S7 Guard 30271 | -3/Section 7 | Found Core Physics Calibrator 30286 | -3/Section 7 | Spotted Executioner 30311 | -3/Section 7 | Spotted Executioner 30316 | -3/Section 7 | Spotted Striker 30390 | -3/Section 7 | Spotted Executioner 30407 | -3/Section 7 | Destroyed Executioner 30430 | -3/Section 7 | Destroyed Executioner 30439 | -3/Section 7 | Found Hpw. Transdimensional Reconstructor 30460 | -3/Section 7 | Spotted B-99 Colossus 30470 | -3/Section 7 | Found Integrated Dissipator 30470 | -3/Section 7 | Installed Integrated Dissipator, increased core heat dissipation (+20) 30472 | -3/Section 7 | Found Integrated Dissipator 30472 | -3/Section 7 | Installed Integrated Dissipator, increased core heat dissipation (+20) 30474 | -3/Section 7 | Found Integrated Dissipator 30474 | -3/Section 7 | Installed Integrated Dissipator, increased core heat dissipation (+20) 30518 | -3/Section 7 | Found LRC Matter Compressor 30518 | -3/Section 7 | Installed LRC Matter Compressor, increased matter storage capacity (+125) 30520 | -3/Section 7 | Found LRC Inertial Stabilizer 30520 | -3/Section 7 | Installed LRC Inertial Stabilizer, increased mass support (+10) 30559 | -3/Section 7 | Integrated with Sigix Exoskeleton 30633 | -3/Section 7 | Found Transdimensional Reconstructor 30773 | -3/Section 7 | Reached level 31 30774 | -3/Section 7 | Warped through subspace to slip node 30776 | -3/Section 7 | Spotted B-86 Titan 30776 | -3/Section 7 | Entered Research 30781 | -2/Research | Emitted hypermatrix ping 30786 | -2/Research | Assembled emerged from beneath the floor 30882 | -2/Research | Assembled emerged from beneath the floor 30885 | -2/Research | Found Prototype Processor 30885 | -2/Research | Identified Exp. Core Analyzer 30909 | -2/Research | Build established: Alien-Sigix 30959 | -2/Research | Lost 4 allies 31026 | -2/Research | First assault squad dispatched 31075 | -2/Research | Upgraded with Power slot (x1) 31075 | -2/Research | Upgraded with Weapon slot (x1) 31093 | -2/Research | Identified exit to Testing 31155 | -2/Research | Reached level 32 31181 | -2/Research | Spotted Executioner 31182 | -2/Research | Spotted Striker 31182 | -2/Research | Spotted B-90 Cyclops 31182 | -2/Research | Spotted Striker 31189 | -2/Research | Assembled emerged from beneath the floor 31231 | -2/Research | Entered Testing 31385 | -2/Testing | Found Prototype Energy Cannon 31386 | -2/Testing | Identified Cld. Nova Cannon 31455 | -2/Testing | Discovered new exit (range 18) 31476 | -2/Testing | Found Prototype Processor 31476 | -2/Testing | Identified Exp. Melee Analysis Suite 31592 | -2/Testing | Identified exit to Access 31627 | -2/Testing | Spotted Striker 31640 | -2/Testing | Scanned by Researcher 31687 | -2/Testing | Entered Access 31689 | -1/Access | Reached level 33 31692 | -1/Access | Emitted hypermatrix ping 31692 | -1/Access | Lost 8 allies 31697 | -1/Access | Assembled emerged from beneath the floor 31704 | -1/Access | Upgraded with Utility slot (x1) 31705 | -1/Access | Used Subatomic Replicator to replicate Sigix Sheargun 31814 | -1/Access | Repaired Exp. Propulsion Shielding 31883 | -1/Access | Fabricated E-15 Imp? 31937 | -1/Access | First assault squad dispatched 31951 | -1/Access | Assembled emerged from beneath the floor 31968 | -1/Access | Lost 3 allies 31974 | -1/Access | Energy Cycler disabled 32026 | -1/Access | Discovered new exit (range 16) 32035 | -1/Access | Identified exit to Command 32318 | -1/Access | Assembled emerged from beneath the floor 32377 | -1/Access | Reached level 34 32390 | -1/Access | Spotted B-99 Colossus 32398 | -1/Access | Core integrity fell below 50% 32437 | -1/Access | Lost 4 allies 32500 | -1/Access | Entered Command 32505 | -1/Command | Emitted hypermatrix ping 32510 | -1/Command | Assembled emerged from beneath the floor 32532 | -1/Command | Repaired Exp. Propulsion Shielding 32533 | -1/Command | Reached level 35 32549 | -1/Command | Repaired Imp. System Restoration Module 32583 | -1/Command | Disengaged cave seal 32656 | -1/Command | Assembled emerged from beneath the floor 32667 | -1/Command | Assembled emerged from beneath the floor 32742 | -1/Command | Spotted B-99 Colossus 32761 | -1/Command | Allies destroyed B-99 Colossus 32762 | -1/Command | Assembled emerged from beneath the floor 32772 | -1/Command | High security lockdown imminent 32818 | -1/Command | Assembled emerged from beneath the floor 32852 | -1/Command | High security lockdown engaged 32883 | -1/Command | Spotted M Guard 32883 | -1/Command | Spotted M Guard 32883 | -1/Command | Spotted Combat Programmer 32890 | -1/Command | Lost 27 allies 32896 | -1/Command | Spotted Combat Programmer 32925 | -1/Command | Destroyed Combat Programmer 32925 | -1/Command | Allies destroyed Combat Programmer 32945 | -1/Command | Lost 20 allies 32947 | -1/Command | Destroyed M Guard 32966 | -1/Command | Destroyed M Guard 32966 | -1/Command | Reached level 36 32966 | -1/Command | All MAIN.C guards destroyed 33005 | -1/Command | Spotted Investigator 33060 | -1/Command | Core integrity fell below 20% 33065 | -1/Command | Met MAIN.C 33066 | -1/Command | 0b10 Conduit disabled 33074 | -1/Command | Destroyed Investigator 33114 | -1/Command | Destroyed 8 combat bots 33257 | -1/Command | Destroyed 12 combat bots 33280 | -1/Command | Assembled emerged from beneath the floor 33288 | -1/Command | Assembled emerged from beneath the floor 33370 | -1/Command | Reached level 37 33370 | -1/Command | MAIN.C's shell transforms into a squad of autonomous robots 33370 | -1/Command | Destroyed MAIN.C Shell 33370 | -1/Command | Spotted M Shell/Atk 33370 | -1/Command | Spotted M Shell/Def 33370 | -1/Command | Spotted M Shell/Atk 33370 | -1/Command | Spotted M Shell/Def 33370 | -1/Command | Spotted M Shell/Atk 33370 | -1/Command | Spotted M Shell/Def 33370 | -1/Command | Spotted M Shell/Def 33370 | -1/Command | Spotted M Shell/Atk 33372 | -1/Command | MAIN.C activated Command garrisons 33450 | -1/Command | Found Prototype Launcher 33462 | -1/Command | Destroyed by G-73 Enforcer with Phase Gun Last Messages --------------- 33415_ Acquired 14 matter. 33432_ Knocked back. 33436_ Quantum Shear penetrates Reinforced Barrier. 33436_ Quantum Shear penetrates MAIN.C. 33439_ Knocked back. 33440_ Upgraded: Core Integrity (+200) 33443_ 0b10 Conduit collapses. 33450_ Acquired Prototype Launcher. 33451_ 0b10 Conduit collapses. 33455_ Imp. Phase Shifter blasted off. 33455_ Knocked back. 33456_ Slug penetrates Reinforced Barrier. Door Terminal opened remotely. 33461_ C-30 ARC bursts open, deploying its payload. 33461_ B-74 Champion unfolds itself. 33461_ G-73 Enforcer unfolds itself. 33462_ Slug penetrates S-43 Plague. 33462_ S-43 Plague suffers critical hit (Destroy). 33462_ S-43 Plague destroyed. 33462_ Penetrated by Slug. Map ----- +----------------------------------------------------+ | ##############################????????############ | | ############################## ??????########### | | ############################## #?????########### | | ############################## ###??############ | | ############################## ####?############ | | ############################## ################# | | ############################## ################# | | ############################## ################# | | ##############################l ################# | | ##############################d ################# | | ############################## h################# | | ############################## ################# | | ##########################e g################# | | ######## #################e ################# | | ##########################e x################# | | / #### ;################ | | /! d = #### ;################ | | / hM p !! =#### s;################ | | ###################== ####l h################# | | =################### ## " ################# | | [!###################/* ## ################# | | ################### cg # W # #$] ### | | " *###################=%%## # W / ;%!!%]!## | | " ################### !cp[!xb ggg!g%!*=!%! | | %%################### !!s%sggp ! =%%==*%!%[! | | *! =# ################# Xg*! !! %%==%!!%%= | | [= |################### % bh!%[!%/*%*%%%!!= | | "[!%###################% [ [g * b!xsl=%[ | | ="################## # *=%[= W !##=! ##" | | !/ ######################## %g!! # # ### | | *[%########################= % ### ############ | | "!########################!=%s= ############ | | !#########################!i[d; # ############# | | ############################ #[[ ################# | | #############################" g################# | | #############################" s################# | | ############################ " g################# | | #############################" ################# | | #############################"x ################# | | #############################" ################# | | #############################" g################# | | ############################## g################# | | ############################## ################# | | ############################## ################# | | ############################## ################# | | ############################## ################# | | #############?################++"################# | | ############??######### ############ | | ##########????######### #### ### #### ############ | | #######???????######### #### ### #### ############ | +----------------------------------------------------+ Best States ------------- Heat Dissipation 223 Coolant Potential 120 Energy Generation 105 Energy Capacity 1330 Matter Stores 525 Matter Capacity 525 Sight Range 18 Robot Scan Range 20 Terrain Scan Range 24 Terrain Scan Density 610 Jamming Range 16 Cloak Strength 3 Power Amplification 30 Additional Mass Support 9 Corruption Containment 12 Armor Coverage 300 Resistance: KI 50 Resistance: TH 50 Resistance: EX 50 Resistance: EM 50 Resistance: I 50 Resistance: S 50 Resistance: P 50 Propulsion Shielding 90 Point Defense Rating 480 Weapon Cycling 25 Phase Shifting 10 Evasion (%) 87 Target Analysis 8 Armor Integrity Analysis 40 Recoil Reduction 6 Particle Charging 25 Kinecelleration 30 Offensive Hacking 40 Defensive Hacking 34 Authchip Count 2 Trap Extractor Capacity 8 Item Schematics ----------------- None Robot Schematics ------------------ None Fabricated ------------ Enh. Gauss Cannon | x2 | -7/Factory | Preloaded, Authchip A-02 Transporter | x1 | -7/Factory | Authchip Phase Shifter | x1 | -7/Factory | Authchip S-27 Virus | x4 | -7/Factory | Preloaded G-47 Trooper | x3 | -7/Factory | Authchip Lgt. Fission Core | x2 | -7/Factory | Authchip X-77 Beamer | x2 | -6/Factory | Authchip Helical Railgun | x1 | -6/Factory | Preloaded Biomechanical Wings | x1 | -6/Factory | Authchip Biomechanical Wings | x1 | -6/Factory F-cell Engine | x1 | -6/Factory A-15 Conveyor | x1 | -6/Factory | Preloaded Biomechanical Wings | x1 | -6/Factory Q-thruster | x2 | -5/Factory | Preloaded B-60 Warrior | x3 | -5/Factory | Preloaded Adv. System Restoration Module | x2 | -5/Factory | Authchip Lgt. Regenerative Plating | x1 | -5/Factory A-27 Freighter | x1 | -5/Factory | Authchip M-36 Artificer | x1 | -5/Factory Prc. Rocket Launcher | x1 | -5/Factory Lgt. Quantum Reactor | x2 | -4/Factory | Preloaded A-27 Freighter | x1 | -4/Factory | Authchip Biomechanical Wings | x1 | -4/Factory Biomechanical Wings | x1 | -4/Factory R-10 Processor | x1 | -4/Factory | Preloaded Imp. Phase Shifter | x1 | -4/Factory | Authchip H-77 Assassin | x2 | -4/Factory | Preloaded Imp. Armor Integrity Analyzer | x1 | -4/Factory | Authchip Adv. Force Field | x2 | -4/Factory Lrn. Terrain Scanner | x1 | -3/Research Exp. Propulsion Shielding | x1 | -3/Research A-27 Freighter | x1 | -3/Research E-15 Imp | x2 | -1/Access | Preloaded Alien Tech Used ----------------- Integrated Reactor Core Reset Matrix Integrated Mediator Dimensional Node Initializer Integrated Dissipator LRC Matter Compressor LRC Inertial Stabilizer Sigix Exoskeleton Sigix Sheargun Core Physics Calibrator Transdimensional Reconstructor Subatomic Replicator Achievements -------------- None Challenges ------------ None RPGLIKE | -11 -10 -10 -9 -9 -9 -8 -8 -7 -7 -7 -7 -6 -6 -6 -6 -6 -5 -5 -5 -5 -5 -5 -4 -4 -4 -4 -4 -4 -3 -3 -3 -3 -2 -2 -1 -1 --------- Run | Yrd Mat Min Mat Min Exi Min Mat Fac Low Low Zio Pro Fac Low Low Dat Pro Fac Ext Cet Arc Hub Fac Was Fac Upp Upp Zhi Pro Res Qua Sec Res Tes Acc Com Levels Raised 36 | . . 1 4 1 . 1 2 5 1 . . 2 2 . 1 . . 2 1 . . . 2 . 1 . . . 1 1 1 1 1 . 2 3 XP Earned 57123 | 3000 1300 1479 5964 700 200 1550 2725 7481 1245 781 248 2707 3298 221 246 105 1047 1902 1452 476 230 616 2844 54 852 238 247 105 999 1386 1004 1336 1580 552 2746 4207 XP Spent 56655 | 2550 . 1300 6550 1510 . . 3820 7600 1830 320 . . 5650 . . . 1400 2700 550 . . . 4650 . . . . 1100 . 2600 . . 3805 . 4400 4320 Upgrades 107 | 5 . 2 8 14 . . 9 14 4 4 . . 4 . . . 1 2 1 . . . 6 . . . . 1 . 1 . . 11 . 4 16 Power Slot 2 | . . . . . . . . . . . . . . . . . . . . . . . 1 . . . . . . . . . 1 . . . Propulsion Slot 6 | 1 . . 2 . . . 1 1 . . . . . . . . . . . . . . 1 . . . . . . . . . . . . . Utility Slot 9 | 1 . 1 1 . . . 1 1 . . . . 1 . . . . 1 . . . . . . . . . . . 1 . . . . 1 . Weapon Slot 5 | 2 . . 1 . . . . . . . . . . . . . 1 . . . . . . . . . . . . . . . 1 . . . Core Integrity 33 | . . . . 4 . . . . . 4 . . . . . . . . . . . . . . . . . . . . . . 9 . . 16 Heat Dissipation 5 | . . . . 1 . . 1 . 3 . . . . . . . . . . . . . . . . . . . . . . . . . . . Energy Generation 2 | . . . . . . . . 1 . . . . . . . . . . 1 . . . . . . . . . . . . . . . . . Matter Storage 2 | . . . . . . . . 2 . . . . . . . . . . . . . . . . . . . . . . . . . . . . Mass Support 3 | . . . 2 . . . . . . . . . . . . . . . . . . . . . . . . 1 . . . . . . . . Inventory Capacity 7 | 1 . 1 2 . . . . 1 1 . . . 1 . . . . . . . . . . . . . . . . . . . . . . . Sight Range 2 | . . . . . . . . 2 . . . . . . . . . . . . . . . . . . . . . . . . . . . . Sensor Range 10 | . . . . 8 . . . 2 . . . . . . . . . . . . . . . . . . . . . . . . . . . . Terrain Scan Density 6 | . . . . . . . 5 . . . . . . . . . . . . . . . 1 . . . . . . . . . . . . . Ranged Accuracy 3 | . . . . . . . . . . . . . . . . . . . . . . . . . . . . . . . . . . . 3 . Melee Accuracy 4 | . . . . 1 . . 1 . . . . . . . . . . 1 . . . . 1 . . . . . . . . . . . . . Hack Attack % 4 | . . . . . . . . 2 . . . . . . . . . . . . . . 2 . . . . . . . . . . . . . Hack Defense % 4 | . . . . . . . . 2 . . . . 2 . . . . . . . . . . . . . . . . . . . . . . . Protomatter Created 6777 | . 28 88 365 45 . 3 49 282 293 189 . 201 769 12 17 . . 366 474 48 . 84 707 . 524 29 178 . 198 45 230 411 52 . 61 1029 Integrity Restored 14684 | . 84 363 782 61 . . 147 777 871 344 34 294 1998 36 51 . 273 966 924 144 158 688 1208 69 788 135 329 . 245 25 312 569 156 . 204 1649 Core 12355 | . 84 288 562 27 . . 147 777 666 249 . 277 1695 36 51 . 273 840 748 144 107 560 1020 54 634 135 299 . 137 9 213 454 156 . 204 1509 Parts 2329 | . . 75 220 34 . . . . 205 95 34 17 303 . . . . 126 176 . 51 128 188 15 154 . 30 . 108 16 99 115 . . . 140 Protomatter Decayed 5487 | . . 16 179 78 . . . . . 48 15 61 170 . . . . 50 449 . 48 50 278 . 270 . 68 . 279 2359 54 41 16 . 61 897 Game ------ Seed OmegaPrecisionSource Manual? 0 Play Time 15:06:19 Cumulative 197.3 hours Start 2024.06.03 @ 22:00:45 End 2024.06.08 @ 07:26:36 Sessions 29 Manual Loads 0 Difficulty Rogue Special Mode Winter2019/RPGLIKE Game No. 56 Rogue 51 Adventurer 4 Explorer 1 Win Type - Total 3 Types 1/0/1/1/0/0/0/0/0 Lore% 41 Gallery% 62 Achievement% 44 Wizard Run 0 Options --------- Layout 0 ASCII 0 Keyboard 0 Movement Mouse Keybinds 0 Fullscreen 1 Font 24/Smallcaps Map View 76x50 Zoom Use 0% Tactical HUD 1 Map Filters NONE Filters NONE Steam X RUN: 69ab853f-82df-45b3-86a8-074bb097f78b